Workbook

Sheet Instructions
C2: KC Compliance Calculator Instructions
B4: Instructions Worksheet
B6: 1. | C6: Light blue cells are to be filled in by the designer.
B7: 2. | C7: Gray cells are automatically calculated based on the designer inputs. These cells are locked and should not be changed.
B8: 3. | C8: Green cells are to be filled in by the Approving Jurisdiction
B9: 4.
B14: 5.
B20: Cover Worksheet
B21: 1. | C21: General Requirements: Complete these in tandem with the Site Summary section of the Site Inputs sheet.
B22: 2. | C22: Designer Verification: After finishing the Design Worksheets (DA#), return to the Cover Sheet to complete the Designer Verification of Compliance with Design Criteria sections.
B23: 3. | C23: Required Maps: Ensure the Required Maps section is marked as provided with the submittal when completing the Designer Verification.
B24: 4. | C24: Saving the Workbook: Once the KC Compliance Calculator is completed, click the "Save as PDF" button at the top. Select a location to save the workbook for submittal. A default name, based on the Project Name and the date, will be provided.
B26: Site Inputs Worksheet | C26: Site Inputs
B27: Site Summary
B28: 1. | C28: Project and Development Type: Select the Project and Development Type using the dropdown list options.
B29: 2. | C29: System Type: Select the System Type in which the project is located using the dropdown list options (Combined Sewer System or Separate Storm Sewer System). If the project is tributary to a combined sewer system at any point downstream, it should be considered combined. Confirm system type with Approving Jurisdiction, as appropriate.
B30: 3. | C30: Proposed Land Use: Select the Proposed Land Use of the project using the dropdown list options. Note that this input primarily used if designer is relying on assumed impervious coverage values, as described in step 4.
B31: 4. | C31: Input Value Basis: Choose the basis for the post-project input values using the dropdown list options.
B32: ◦ | C32: If "Estimated Values" is selected, an assumed percent impervious coverage will be generated based on the selected land use. This will be used by the designer to complete the drainage areas worksheet. Assumed values are only appropriate for early concept analysis, or, larger residential-type developments where final building/pavement layouts are yet to be defined.
B33: 5. | C33: Total Disturbed Area: Enter the total disturbed area in square feet. A message will appear saying the total of the subdivided drainage areas in the Drainage Area Summary Table does not match the total disturbed area. After completing the Drainage Area Summary Table, ensure that the totals match and the message is not displayed.
B34: ◦ | C34: Treatment Summary Table: This table is auto-calculated based on the remaining inputs of the sheet and is used to determine values in subsequent tables and worksheets. As the detailed drainage area tables are completed, a message will appear if the volume of the uncontrolled area is too high.
B35: Drainage Areas
B36: 1. | C36: Number of Drainage Areas: Enter the number of drainage areas that intersect the disturbed area of the site in cell E24. These include both controlled and uncontrolled drainage areas.
B37: ◦ | C37: The Drainage Area Summary Table will automatically adjust based on the value entered in cell E24. The Unique Drainage Area ID will initially fill with numbers 1, 2, 3, etc.
B38: ◦ | C38: Two tables are automatically added to the bottom of the worksheet for each drainage area in the Drainage Area Summary Table; an Individual Drainage Area Summary Table, which auto-calculates values needed for the Design worksheets (DA#), and a Cover Type Area Table, for the designer to complete.
B39: ◦ | C39: Note: The Drainage Area ID, control designation (Yes/No), and disturbed drainage area in each detailed table are linked to the corresponding row in the Drainage Area Summary Table. Any revisions must be made in the Drainage Area Summary Table.
B40: ◦ | C40: Note: If the total number of drainage areas is increased in cell E24, the workbook will automatically generate additional tables.
B41: ◦ | C41: Note: If the total number of drainage areas is decreased in cell E24, a warning will appear asking if you are sure you want to delete the associated tables and design worksheets. Click "Yes" to complete the deletion of the drainage area; click "No" to keep the drainage area.
B42: 2. | C42: Complete the Drainage Area Summary Table:
B43: a. | C43: Unique Drainage Area Identifier (ID): Adjust the Drainage Area IDs if desired.
B44: ◦ | C44: Note: The number of drainage areas must be changed in cell E24 per Step 1; the number must not be adjusted by expanding this table manually or through deleting data and leaving blank rows.
B45: b. | C45: Feasibility of Control: Indicate if each drainage area can be feasibly controlled.
B46: ◦ | C46: Note: The uncontrolled drainage area represents the portion of the project's disturbed area from which it is impractical to capture and convey stormwater runoff to a retention or detention practice. The percentage of controlled drainage area must meet or exceed the project type percentage. Reference to Appendix A Definitions.
B47: ◦ | C47: Note: Design Worksheets are only generated in Step 5 for drainage areas which are marked "Yes", they can be feasibly controlled. If a drainage area is later marked as "No", it cannot be feasibly controlled, a warning will appear asking if you are you want to delete the associated design worksheet. Click "Yes" to complete the deletion of the design worksheet; click "No" to keep the design worksheet.
B48: c. | C48: Disturbed Drainage Area: Enter the amount of the drainage area within the disturbed area in square feet.
B49: 3. | C49: Select Post-Project Cover Types: Choose the cover types present in the post-project condition. Reference Table 5602-4 for Rv assumptions.
B50: a. | C50: Filter Cover Types: Use the "Filter Cover Types" button to filter the tables based on selected choices, if desired. Cover types can be unfiltered to the tables by click the "Unfilter Cover Types" button.
B51: 4. | C51: Enter Cover Type Areas: For each Cover Type Area Table (generated for each drainage area per Step 1), enter the area values for applicable post-project cover types within the disturbed area footprint.
B52: a. | C52: Impervious Cover: If unknown, calculate using the assumed percent impervious coverage in cell E9.
B53: ◦ | C53: Auto-Calculations: Required retention volume, pervious area weighted Rv, impervious area weighted Rv, and post-project condition weighted CN in the detailed summary table will auto-calculate as cover type areas are entered.
B54: ◦ | C54: Note: The total cover area must equal the disturbed drainage area in the Drainage Area Summary Table. A message will display until totals match.
B55: ◦ | C55: Note: If there are drainage areas that are not controlled, the RRV for the controlled drainage areas in the Individual Drainage Area Summary Table(s) will be adjusted to account for the additional volume needing to be controlled.
B56: 5. | C56: Generate Design Worksheets: Once detailed drainage area tables are completed, click the "Generate Design Worksheets" button. This will create a new worksheet titled "DA X" for each controlled drainage area, where "DA" stands for "Drainage Area" and "X" corresponds to the Unique Drainage Area ID.
B57: a. | C57: If the total number of drainage areas is increased or a previously uncontrolled area is now controlled, click the button again to generate additional design worksheets.
B58: b. | C58: If the total number of drainage areas is decreased or a previously controlled area is now uncontrolled, a warning will appear asking if you are sure you want to delete the associated tables and/or design worksheets. Click "Yes" to complete the deletion of the drainage area; click "No" to keep the drainage area.
B59: ◦ | C59: Linking: Each design worksheet links to the corresponding detailed summary table. Revisions must be made in the Drainage Area Summary Table or the appropriate Cover Type Area Table of the Site Inputs Worksheet.
B62: Design Worksheet(s) (DA# Worksheets)
B63: Linking Values: The values at the top of each design worksheet link to the Site Inputs worksheet. Any revisions to disturbed area or cover types must be made in the corresponding Drainage Area Summary Table or the appropriate Cover Type Area Table in the Site Inputs Worksheet.
B64: Required Retention Volume Reductions
B65: 1. | C65: Natural Area Preservation/Restoration and Downspout Disconnections: Enter the area values of the natural or pervious area receiving the sheetflow/disconnection and the corresponding drainage area (pervious and/or impervious), if any. A credit will be auto-calculated and deducted from the total retention volume required for the drainage area.
B66: 2. | C66: Tree Preservation/Planting: Enter the number of trees either being preserved or planted, if any. A credit will be auto-calculated and deducted from the total retention volume required for the drainage area.
B67: Retention Practices
B68: 1. | C68: Material Types and Storage Layers: Select the material types and/or storage layers to be used for all retention practices in the drainage area. Corresponding columns will appear in the design table below as selections are made.
B69: 2. | C69: Retention Facility ID: Create an ID for each unique retention facility.
B70: 3. | C70: Practice: Select a type of retention practice to design.
B71: 4. | C71: In-Series Retention Facilities: Enter the downstream retention facility ID for routing when retention facilities are applied in-series.
B72: 5. | C72: Tributary Drainage Area: Enter the pervious and impervious tributary drainage area to each facility.
B73: ◦ | C73: Impervious tributary area should include the following cover types: pervious area, gravel - public road with compacted subgrade material, and water surfaces. All other cover types should be input in the pervious tributary drainage area columns. The pervious area weighted Rv for the drainage area factors in the appropriate weighted runoff coefficient to be applied
B74: ◦ | C74: A "Target RRV Prior to Reductions" for each GSI facility is auto-calculated based on the pervious weighted Rv, impervious weighted Rv, the PT%, the tributary drainage area to the GSI, and any bypass volume from upstream facilities. This value is approximate in nature and intended to assist the designer in right-sizing each facility. The approximate target retention volume does NOT include the RRVreductions and therefore does NOT represent the exact RRV. It is intended to set a target for the designer while giving flexibility in where the RRVreductions are applied within each drainage area, so long as the total RRV for the drainage area is met.
B75: 6. | C75: Design Parameters: Enter the design parameters for each storage and/or material layer of the facility to achieve the required retention volume. Porosity values (n) and volumes are auto-calculated.
B76: ◦ | C76: The Retention Volume Provided (VR) is auto-calculated based on the lesser of the GSI Total Static Storage Volume (GSIstorage) * GSI runoff reduction factor (RRFGSI) based on the GSI Practice type and presence of an underdrain, or, the Maximum Retention Credit Allowed. Note that the VR cannot exceed the maximum retention credit allowed based on maximum WQv tributary to each GSI. Oversizing a facility without the tributary drainage area to support it will not be credited.
B77: ◦ | C77: The bypass volume is calculated as the difference between the approximate target retention volume and the VR. The bypass volume is automatically routed to the designated downstream retention facility identified. Note that bypass is permitted provided that the bypass at the downstream most facility(ies) do not exceed the RRVreductions for the drainage area.
B78: ◦ | C78: A message will appear if the facility is oversized by more than 10%, warning that credit cannot be taken for volume over the maximum retention credit allowed and to consider reducing the facility size. Designer is recommended to right-size the facility.
B79: ◦ | C79: Underneath the design table, the required retention volume after reductions (RRVDA#) and the retention volume achieved with retention practices (VR)are shown. A message will indicate whether the required retention volume was achieved or if additional volume is needed.
B80: 7. | C80: Hide/Show Blank Rows: After completing the design table, click the "Hide Blank Rows in Retention Practice Table" button. If necessary, blank rows can be added back by clicking the "Show Blank Rows in Retention Practice Table" button.
B81: Detention Calculations
B82: 1. | C82: Rainfall Depth: Input the rainfall depth for each design storm based on the project's location.
B83: 2. | C83: Retention Design Completion: After completing the retention design, cells in row 86 will auto-calculate a retention adjusted curve number (CNR), and row 87 will indicate if detention is required for each storm event. Use this information to meet detention release rate requirements. With sufficient retention practices, the CNR may reduce or eliminate the need for detention peak flow control for some of the required design storms.
B84: 3. | C84: Peak Outflow Rates: Input the modeled peak outflow rates for each design storm. A message will appear if the release rate requirements have been met or if the outlet control needs resizing to meet the required release rate.
B85: 4. | C85: Overtopping Elevation & Max Ponding Depths: Input the elevation at which water will overtop and exit the detention practice and therefore not be controlled by the primary, secondary, or overflow spillway. Input the modeled maximum water surface elevation for each design storm. A message will appear if the maximum ponding elevation exceeds the overtopping elevation of the practice.
B87: Design Summary Worksheet
B88: Purpose: The Design Summary worksheet is a tool for both designers and reviewers to confirm that the design for individual drainage areas meets the total site requirements.
B89: Drainage Area Summary: For each drainage area, the worksheet summarizes the following: RRV Prior to Reductions RRV Reductions RRV After Reductions Retention Volume Achieved
B90: Total Site Summary: The Total Site Summary table auto-sums each of these values and checks that the required Percent WQv Control is achieved. A message will appear if the required Percent WQv Control is not achieved, in which case, the design needs revised for one or more drainage areas.

Sheet Cover
B2: General Requirements
B3: Project Information
C4: Project Name:
C5: Date:
C6: Address:
C7: Nearest Intersection:
C9: Project Type: | H9: =IF('Site Inputs'!$D$4="","",'Site Inputs'!$D$4) -> 
C10: System Type: | H10: =IF('Site Inputs'!$D$5="","",'Site Inputs'!$D$5) -> 
C11: Proposed Land Use: | H11: =IF('Site Inputs'!$D$6="","",'Site Inputs'!$D$6) -> 
C12: Input Value Basis: | H12: =IF('Site Inputs'!$D$7="","",'Site Inputs'!$D$7) -> 
B14: Site Parameters
C15: Total Disturbed Area of Site | J15: =IF('Site Inputs'!$D$9=0,"",'Site Inputs'!$D$9/43560) ->  | K15: acres
C16: Total Proposed Impervious Area | K16: square feet
C18: Single-family/duplex dwelling part of a larger common plan of development? | K18: (Select Yes/No)
D20: Lot Size | K20: acres
D21: Percent Impervious Coverage | K21: %
C23: Effective FEMA floodplain? | K23: (Select Yes/No)
C24: Describe Known Stormwater Issues (if any):
B31: Stormwater Management Requirements/Variance
C32: Project required to meet stormwater management criteria? | K32: =IF(J18="No", IF(OR(J20 < 1, J21 < 35), "No", "Yes"), IF(AND(J15 < 0.5, J16 < 5000), "No", "Yes")) -> Yes
C33: Request for Variance? | L33: (Select Yes/No)
D34: If yes, explain why a variance is being requested.
B41: Approving Jurisdiction Review
B42: This section is to be filled out by the approving jurisdiction following completion of review.
B44: Requirements Met?
B45: FALSE | C45: Approved | G45: Preservation/Restoration | J45: I hereby certify that I have reviewed the information submitted:
B46: FALSE | C46: Revise & Resubmit
B47: FALSE | C47: Approved | G47: Retention/Detention
B48: FALSE | C48: Revise & Resubmit
B49: FALSE | C49: Approved | G49: Collection | J49: Approving Authority Signature
B50: FALSE | C50: Revise & Resubmit
B51: FALSE | C51: Approved | G51: Conveyance
B52: FALSE | C52: Revise & Resubmit
B53: FALSE | C53: Approved | G53: Maintenance Responsibilities
B54: FALSE | C54: Revise & Resubmit | J54: Name (Printed) | L54: Date
B56: Landscape Professional Verification of Compliance with Design Criteria
B57: Preservation/Restoration
B58: Requirements Met? | H58: Design Criteria
B59: FALSE | C59: Yes | D59: FALSE | E59: No | F59: FALSE | G59: N/A | H59: Stream setbacks meet requirements of Section 5604 and placed within a separate dedicated tract of land restricted from future development?
B60: FALSE | C60: Yes | D60: FALSE | E60: No | H60: Project incorporates preservation or restoration of Natural Areas?
B61: FALSE | C61: Yes | D61: FALSE | E61: No | F61: FALSE | G61: N/A | H61: Natural Area meets requirements of Section 5604?
B62: FALSE | C62: Yes | D62: FALSE | E62: No | F62: FALSE | G62: N/A | H62: Natural Area placed within a separate dedicated tract of land restricted from future development?
B63: FALSE | C63: Yes | D63: FALSE | E63: No | F63: FALSE | G63: N/A | H63: Project incorporates the following Sustainable Stormwater Management Practices and RRV reductions meeting requirements of Section 5602 and 5604 (select all that apply):
B64: FALSE | C64: Yes | D64: FALSE | E64: No | F64: FALSE | G64: N/A | H64: Sheetflow to Natural Areas
B65: FALSE | C65: Yes | D65: FALSE | E65: No | F65: FALSE | G65: N/A | H65: Sheetflow to Natural Areas
B66: FALSE | C66: Yes | D66: FALSE | E66: No | F66: FALSE | G66: N/A | H66: Downspout Disconnection (not applicable for residential developments)
B67: FALSE | C67: Yes | D67: FALSE | E67: No | F67: FALSE | G67: N/A | H67: Preservation of Existing Trees or Planting New Trees?
J69: Total RRV Reductions: | K69: ='Design Summary'!$D$7 -> 0 | L69: (ft3)
B70: Licensee's Seal:
H71: I hereby certify, as a Landscape Professional, that the information in the Preservation/Restoration section of this form was assembled under my direct personal charge and is in compliance with the Stormwater Management Criteria.
H73: Professional Name | K73: License Number | L73: State
B76: Professional Engineer Verification of Compliance with Design Criteria
B77: Retention
B78: Requirements Met? | H78: Design Criteria | K78: Retention Volume (ft3)
B79: FALSE | C79: Yes | D79: FALSE | E79: No | F79: FALSE | G79: N/A | H79: Required Retention Volume met per Section 5602?
B80: FALSE | C80: Yes | D80: FALSE | E80: No | F80: FALSE | G80: N/A | H80: Easement(s) provided per Section 5609.3? | K80: Required | L80: Designed
H81: RRV (prior to RRV Reductions) | K81: ='Design Summary'!$D$6 -> 0 | L81: ='Design Summary'!$D$9 -> 0
H82: RRV (with RRV Reductions) | K82: ='Design Summary'!$D$8 -> 0
B83: Detention
B84: Requirements Met? | H84: Design Criteria | K84: Release Rates (cfs)
B85: FALSE | C85: Yes | D85: FALSE | E85: No | F85: FALSE | G85: N/A | H85: Easement(s) provided per Section 5609.3? | K85: Maximum Allowable | L85: Designed
B86: FALSE | C86: Yes | D86: FALSE | E86: No | F86: FALSE | G86: N/A | H86: 2-year peak outflow control achieved? | K86: =IF($J$15="","",0.2*$J$15) ->  | L86: =0 -> 0
B87: FALSE | C87: Yes | D87: FALSE | E87: No | F87: FALSE | G87: N/A | H87: 10-year peak outflow control achieved? | K87: =IF($J$15="","",0.6*$J$15) ->  | L87: =0 -> 0
B88: FALSE | C88: Yes | D88: FALSE | E88: No | F88: FALSE | G88: N/A | H88: 100-year peak outflow control achieved? | K88: =IF($J$15="","",3*$J$15) ->  | L88: =0 -> 0
B89: Collection
B90: Requirements Met? | H90: Design Criteria
B91: FALSE | C91: Yes | D91: FALSE | E91: No | F91: FALSE | G91: N/A | H91: Inlet placement and gutter spread per requirements of Section 5607?
B92: Conveyance
B93: Requirements Met? | H93: Design Criteria
B94: FALSE | C94: Yes | D94: FALSE | E94: No | F94: FALSE | G94: N/A | H94: Easement(s) provided per Section 5609.3?
B95: FALSE | C95: Yes | D95: FALSE | E95: No | F95: FALSE | G95: N/A | H95: Enclosed pipe systems per requirements of 5608.3?
B96: FALSE | C96: Yes | D96: FALSE | E96: No | F96: FALSE | G96: N/A | H96: Minor drainage systems per requirements of 5608.4, C, 3?
B97: FALSE | C97: Yes | D97: FALSE | E97: No | F97: FALSE | G97: N/A | H97: Designated overflow routes for 100-year design storm per requirements of Section 5608.2?
B98: FALSE | C98: Yes | D98: FALSE | E98: No | F98: FALSE | G98: N/A | H98: Open channel design per requirements of 5608.4 and energy management per 5608.5?
B99: FALSE | C99: Yes | D99: FALSE | E99: No | F99: FALSE | G99: N/A | H99: Road crossings per requirements of 5608.4, D?
B100: Licensee's Seal:
H101: I hereby certify, as a Professional Engineer, that the information in the Retention, Detention, Collection, and Conveyance sections of this form were assembled under my direct personal charge and is in compliance with the Stormwater Management Criteria.
H103: Professional Name | K103: License Number | L103: State
B106: Required Maps
B107: FALSE | C107: Watershed Location Map. Describes the project's location within the greater watershed depicting:
B108: 1. | C108: Watershed boundary and area (acres)
B109: 2. | C109: Delineated drainage area tributary to the project site (acres)
B110: 3. | C110: Natural overland drainage paths to, through and downstream of the project site to the downstream destination of runoff (whether open channel or enclosed system)
B111: 4. | C111: Water bodies & regulatory floodplain (lakes, rivers, streams, creeks, wetlands, etc.)
B112: 5. | C112: Existing stormwater retention/detention facility location(s) in upstream or downstream watershed affecting stormwater management at project site (if applicable)
B113: FALSE | C113: Existing Site Conditions Map. Demonstrates existing conditions of the site depicting:
B114: 1. | C114: Existing contours
B115: 2. | C115: Aerial imagery
B116: 3. | C116: Water bodies & regulatory floodplain (lakes, rivers, streams, creeks, wetlands, etc.)
B117: 4. | C117: Natural overland drainage paths and discharge points from the site
B118: 5. | C118: Existing utilities, including existing stormwater infrastructure
B119: 6. | C119: Parcel boundaries
B120: 7. | C120: Existing impervious surfaces and types (i.e. building, parking lot, gravel, etc.)
B121: 8. | C121: Key statistics including total disturbed area, total impervious area, and lot size (if applicable)
B122: FALSE | C122: Proposed Site Conditions Map. Demonstrates proposed conditions of the site depicting:
B123: 1. | C123: Proposed contours including finished floor elevation (FFE) and lowest opening elevation (LOE) information
B124: 2. | C124: Existing and proposed utilities, including existing stormwater infrastructure overland drainage paths
B125: 3. | C125: Designated overflow routes and discharge points from the site
B126: 4. | C126: Proposed drainage areas labeled with IDs and acreages correlating to the stormwater management calculator inputs, including uncontrolled drainage area
B127: 5. | C127: Parcel boundaries depicting required utility easements, stream setbacks identifying key features and statistics (top of bank or bank-full extents, centerline, Zone 1, and Zone 2, and dimensional offset), and Natural Areas with key statistics (total footprint, minimum length and width).
B128: 6. | C128: Impervious surfaces and types (i.e. building, parking lot, gravel, etc.)
B129: 7. | C129: Stormwater improvements including Natural Areas of preservation or restoration, preserved trees, new trees, retention practices, detention practices, collection and conveyance practices with labels correlating to the stormwater management calculator inputs
B131: Maintenance Requirement & Responsibilities
B132: Storm Drainage System Components
B133: Select all applicable components of the storm drainage system design
H134: Preserved Natural Areas | I134: FALSE
H135: Restored Natural Areas | I135: FALSE
H136: Retention & Detention Practices | I136: FALSE
H137: Collection Practices | I137: FALSE
H138: Conveyance Practices | I138: FALSE
B139: During Construction
H141: Anticipated Construction Start
J142: Month | K142: Year
H143: Anticipated Construction Completion
J144: Month | K144: Year
B145: Responsible Party
B147: Name | I147: Address | L147: Phone
B148: Warranty and/or Vegetation Establishment Period
H150: Anticipated Construction Start
J151: Month | K151: Year
H152: Anticipated Construction Completion
J153: Month | K153: Year
B154: Responsible Party
B156: Name | I156: Address | L156: Phone
B157: Long-Term Owner (Post-Warranty Period)
B158: Describe source of funding and the mechanism for maintenance of stormwater drainage system:
B165: Responsible Party
B167: Name | I167: Address | L167: Phone

Sheet Site Inputs
B2: Site Inputs Worksheet
B4: Project and Development Type:
B5: System Type:
B6: Proposed Land Use:
B7: Input Value Basis:
B8: Assumed Percent Impervious Coverage: | D8: =IF($D$7="Actual measured values based on improvement plans", "NA", IF($D$7="Estimated values based on development type", IF($D$6<>"", IFERROR(VLOOKUP($D$6,'Lookup Tables'!$A$54:$B$64,2,FALSE),""), ""), "")) ->  | E8: =IF($D$7="","Select an Input Value Basis above.", IF(D7="Estimated values based on development type", IF(D6="","Select a Proposed Land Use above.",""), "")) -> Select an Input Value Basis above.
B9: Total Disturbed Area ft2: | E9: =IF($D$9="","",(IF($D$9-SUM(Drainage_Area_IDs[Disturbed Drainage Area (ft2)])<>0,"⮽ Subdivided disturbed drainage areas from the Drainage Area Summary Table does not match the input total disturbed area.",""))) -> 
B11: Treatment Summary Table
B12: Water Quality Storm Event (PWQ), inches | E12: 1.37
B13: Percent of Water Quality Storm to be Retained (PT%) | E13: =IFERROR(IF(D5="Separate Storm Sewer System",VLOOKUP($D$4,'Lookup Tables'!$A$3:$C$7,2,FALSE),IF(D5="Combined Sewer System",VLOOKUP($D$4,'Lookup Tables'!$A$3:$C$7,3,FALSE),0)),0) -> 0 | F13: =IF(AND(D4="", D5=""),"",IF(D5="","Select a System Type above",IF(D4="","Select a Project and Development Type above",""))) -> 
B14: Total Controlled Disturbed Area (Acontrolled), ft2 | E14: =IF(SUMIF(Drainage_Area_IDs[Can this drainage area be feasibly controlled?],"Yes",Drainage_Area_IDs[Disturbed Drainage Area (ft2)])>0,SUMIF(Drainage_Area_IDs[Can this drainage area be feasibly controlled?],"Yes",Drainage_Area_IDs[Disturbed Drainage Area (ft2)]),0) -> 0
B15: Controlled Area Rv (Rvcontrolled) | E15: =0 -> 0 | F15: Equation 5602-16
B16: Total Uncontrolled Disturbed Area, ft2 | E16: =IF(SUMIF(Drainage_Area_IDs[Can this drainage area be feasibly controlled?],"No",Drainage_Area_IDs[Disturbed Drainage Area (ft2)])>0,SUMIF(Drainage_Area_IDs[Can this drainage area be feasibly controlled?],"No",Drainage_Area_IDs[Disturbed Drainage Area (ft2)]),0) -> 0
B17: Total Required Retention Volume (RRV), ft3 | E17: =IFERROR(($E$12/12)*$E$13*(M66*O66), 0) -> 0 | F17: Equation 5602-9
B18: Uncontrolled Retention Volume, ft3 | E18: =SUM(0) -> 0 | F18: =IFERROR((IF($E$18/$E$17>(1-$E$13),"⮽ Uncontrolled area is too large. Stormwater management required for portions of uncontrolled area.","☑ Uncontrolled area is within the limit to achieve the total site retention requirements.")),"") -> 
B19: Adjusted PT% within Controlled Drainage Areas (PT%controlled) | E19: =IFERROR(IF($E$16=0,"NA",(12*($E$17)/($E$12*($E$15*$E$14)))),"") -> NA | F19: Equation 5602-15
B22: Drainage Areas
B24: How many total drainage areas are included on the site? | E24: 1
B26: Drainage Area Summary Table
B27: Unique Drainage Area Identifier (ID) | C27: Can this drainage area be feasibly controlled? | D27: Disturbed Drainage Area (ft2)
B28: 1
B31: Select post-project cover types within the disturbed area:
B32: Natural Area | E32: FALSE
B33: Pervious Area | E33: FALSE
B34: Impervious Area | E34: FALSE
B35: Solar Farm - Native | E35: FALSE
B36: Solar Farm - Gravel | E36: FALSE
B37: Gravel - Overflow Parking Lots, Trails/Maintenance Paths, Substations | E37: FALSE
B38: Gravel - Primary Parking Lots, Access Driveways, Railroad Ballasts | E38: FALSE
B39: Gravel - Public Road with Compacted Subgrade Material | E39: FALSE
B40: Artificial Turf - No Underdrain System | E40: FALSE
B41: Artificial Turf - Underdrain System | E41: FALSE
B42: Water Surfaces | E42: FALSE
A43: TRUE
A45: TRUE | B45: Individual Drainage Area Summary Table ID: | E45: =IF(ISBLANK('Site Inputs'!$B$28), "-", 'Site Inputs'!$B$28) -> 1
A46: TRUE | B46: Is this drainage area controlled? | E46: =IF(ISBLANK('Site Inputs'!$C$28), "-", 'Site Inputs'!$C$28) -> -
A47: TRUE | B47: Disturbed drainage area (ft2) | E47: =IF(ISBLANK('Site Inputs'!$D$28), "0", 'Site Inputs'!$D$28) -> 0
A48: TRUE | B48: =IF(E46="No", "Uncontrolled Retention Volume, (ft³)", IF(AND(E46="Yes", 'Site Inputs'!$E$19="NA"), "RRV Prior to Reductions, (ft³)", IF(AND(E46="Yes", 'Site Inputs'!$E$19>0), "Adjusted RRV Prior to Reductions, (ft³)", "RRV Prior to Reductions, (ft³)"))) -> RRV Prior to Reductions, (ft³) | E48: =IFERROR(IF(E46="Yes",IF('Site Inputs'!$E$19="NA",'Site Inputs'!$E$12/12*'Site Inputs'!$E$13*M66*O66,'Site Inputs'!$E$12/12*'Site Inputs'!$E$19*M66*O66),'Site Inputs'!$E$12/12*'Site Inputs'!$E$13*M66*O66),0) -> 0 | F48: Equation 5602-9
A49: TRUE | B49: Pervious Area Weighted Rv | E49: =IF(E46="No","NA",IFERROR((M55*O55+M56*O56+M58*O58+M59*O59+M60*O60+M61*O61+M63*O63+M64*O64)/(M55+M56+M58+M59+M60+M61+M63+M64),"-")) -> -
A50: TRUE | B50: Impervious Area Weighted Rv | E50: =IF(E46="No","NA",IFERROR((O57*M57++M62*O62+O65*M65)/(M57+M62+M65),"-")) -> -
A51: TRUE | B51: Post-Project Condition Weighted CN | E51: =IFERROR((SUMPRODUCT(E55:E65,F55:F65)+SUMPRODUCT(G55:G65,H55:H65)+SUMPRODUCT(I55:I65,J55:J65)+SUMPRODUCT(K55:K65,L55:L65))/M66,"-") -> -
A52: TRUE
A53: TRUE | B53: ="Post-Project Cover Type Area Table for Drainage Area "&E45 -> Post-Project Cover Type Area Table for Drainage Area 1 | E53: Area (ft2)
A54: TRUE | B54: Cover Type | E54: Soil Type A | F54: CN | G54: Soil Type B | H54: CN | I54: Soil Type C | J54: CN | K54: Soil Type D | L54: CN | M54: Total | N54: % Cover | O54: Rv
A55: ='Site Inputs'!$E$32 -> FALSE | B55: Natural Area | F55: =VLOOKUP(B55,'Lookup Tables'!$A$12:$F$22,3,FALSE) -> 30 | H55: =VLOOKUP(B55,'Lookup Tables'!$A$12:$F$22,4,FALSE) -> 55 | J55: =VLOOKUP(B55,'Lookup Tables'!$A$12:$F$22,5,FALSE) -> 70 | L55: =VLOOKUP(B55,'Lookup Tables'!$A$12:$F$22,6,FALSE) -> 77 | M55: =E55+G55+I55+K55 -> 0 | N55: =IF(M66>0,M55/M66,0) -> 0 | O55: =VLOOKUP(B55,'Lookup Tables'!$A$12:$F$22,2,FALSE) -> 0
A56: ='Site Inputs'!$E$33 -> FALSE | B56: Pervious Area | F56: =VLOOKUP(B56,'Lookup Tables'!$A$12:$F$22,3,FALSE) -> 39 | H56: =VLOOKUP(B56,'Lookup Tables'!$A$12:$F$22,4,FALSE) -> 61 | J56: =VLOOKUP(B56,'Lookup Tables'!$A$12:$F$22,5,FALSE) -> 74 | L56: =VLOOKUP(B56,'Lookup Tables'!$A$12:$F$22,6,FALSE) -> 80 | M56: =E56+G56+I56+K56 -> 0 | N56: =IF(M66>0,M56/M66,0) -> 0 | O56: =VLOOKUP(B56,'Lookup Tables'!$A$12:$F$22,2,FALSE) -> 0.25
A57: ='Site Inputs'!$E$34 -> FALSE | B57: Impervious Area | F57: =VLOOKUP(B57,'Lookup Tables'!$A$12:$F$22,3,FALSE) -> 98 | H57: =VLOOKUP(B57,'Lookup Tables'!$A$12:$F$22,4,FALSE) -> 98 | J57: =VLOOKUP(B57,'Lookup Tables'!$A$12:$F$22,5,FALSE) -> 98 | L57: =VLOOKUP(B57,'Lookup Tables'!$A$12:$F$22,6,FALSE) -> 98 | M57: 0 | N57: =IF(M66>0,M57/M66,0) -> 0 | O57: =VLOOKUP(B57,'Lookup Tables'!$A$12:$F$22,2,FALSE) -> 0.95
A58: ='Site Inputs'!$E$35 -> FALSE | B58: Solar Farm - Native | F58: =VLOOKUP(B58,'Lookup Tables'!$A$12:$F$22,3,FALSE) -> 62 | H58: =VLOOKUP(B58,'Lookup Tables'!$A$12:$F$22,4,FALSE) -> 76 | J58: =VLOOKUP(B58,'Lookup Tables'!$A$12:$F$22,5,FALSE) -> 84 | L58: =VLOOKUP(B58,'Lookup Tables'!$A$12:$F$22,6,FALSE) -> 88 | M58: 0 | N58: =IF(M66>0,M58/M66,0) -> 0 | O58: =VLOOKUP(B58,'Lookup Tables'!$A$12:$F$22,2,FALSE) -> 0.4
A59: ='Site Inputs'!$E$36 -> FALSE | B59: Solar Farm - Gravel | F59: =VLOOKUP(B59,'Lookup Tables'!$A$12:$F$22,3,FALSE) -> 75 | H59: =VLOOKUP(B59,'Lookup Tables'!$A$12:$F$22,4,FALSE) -> 84 | J59: =VLOOKUP(B59,'Lookup Tables'!$A$12:$F$22,5,FALSE) -> 89 | L59: =VLOOKUP(B59,'Lookup Tables'!$A$12:$F$22,6,FALSE) -> 92 | M59: 0 | N59: =IF(M66>0,M59/M66,0) -> 0 | O59: =VLOOKUP(B59,'Lookup Tables'!$A$12:$F$22,2,FALSE) -> 0.6
A60: ='Site Inputs'!$E$37 -> FALSE | B60: Gravel - Overflow Parking Lots, Trails/Maintenance Paths, Substations | F60: =VLOOKUP(B60,'Lookup Tables'!$A$12:$F$22,3,FALSE) -> 75 | H60: =VLOOKUP(B60,'Lookup Tables'!$A$12:$F$22,4,FALSE) -> 84 | J60: =VLOOKUP(B60,'Lookup Tables'!$A$12:$F$22,5,FALSE) -> 89 | L60: =VLOOKUP(B60,'Lookup Tables'!$A$12:$F$22,6,FALSE) -> 92 | M60: 0 | N60: =IF(M66>0,M60/M66,0) -> 0 | O60: =VLOOKUP(B60,'Lookup Tables'!$A$12:$F$22,2,FALSE) -> 0.6
A61: ='Site Inputs'!$E$38 -> FALSE | B61: Gravel - Primary Parking Lots, Access Driveways, Railroad Ballasts | F61: =VLOOKUP(B61,'Lookup Tables'!$A$12:$F$22,3,FALSE) -> 88 | H61: =VLOOKUP(B61,'Lookup Tables'!$A$12:$F$22,4,FALSE) -> 92 | J61: =VLOOKUP(B61,'Lookup Tables'!$A$12:$F$22,5,FALSE) -> 94 | L61: =VLOOKUP(B61,'Lookup Tables'!$A$12:$F$22,6,FALSE) -> 96 | M61: 0 | N61: =IF(M66>0,M61/M66,0) -> 0 | O61: =VLOOKUP(B61,'Lookup Tables'!$A$12:$F$22,2,FALSE) -> 0.8
A62: ='Site Inputs'!$E$39 -> FALSE | B62: Gravel - Public Road with Compacted Subgrade Material | F62: =VLOOKUP(B62,'Lookup Tables'!$A$12:$F$22,3,FALSE) -> 98 | H62: =VLOOKUP(B62,'Lookup Tables'!$A$12:$F$22,4,FALSE) -> 99 | J62: =VLOOKUP(B62,'Lookup Tables'!$A$12:$F$22,5,FALSE) -> 98 | L62: =VLOOKUP(B62,'Lookup Tables'!$A$12:$F$22,6,FALSE) -> 98 | M62: 0 | N62: =IF(M66>0,M62/M66,0) -> 0 | O62: =VLOOKUP(B62,'Lookup Tables'!$A$12:$F$22,2,FALSE) -> 0.95
A63: ='Site Inputs'!$E$40 -> FALSE | B63: Artificial Turf - No Underdrain System | F63: =VLOOKUP(B63,'Lookup Tables'!$A$12:$F$22,3,FALSE) -> 66 | H63: =VLOOKUP(B63,'Lookup Tables'!$A$12:$F$22,4,FALSE) -> 78 | J63: =VLOOKUP(B63,'Lookup Tables'!$A$12:$F$22,5,FALSE) -> 85 | L63: =VLOOKUP(B63,'Lookup Tables'!$A$12:$F$22,6,FALSE) -> 89 | M63: 0 | N63: =IF(M66>0,M63/M66,0) -> 0 | O63: =VLOOKUP(B63,'Lookup Tables'!$A$12:$F$22,2,FALSE) -> 0.45
A64: =$E$41 -> FALSE | B64: Artificial Turf - Underdrain System | F64: =VLOOKUP(B64,'Lookup Tables'!$A$12:$F$22,3,FALSE) -> 88 | H64: =VLOOKUP(B64,'Lookup Tables'!$A$12:$F$22,4,FALSE) -> 92 | J64: =VLOOKUP(B64,'Lookup Tables'!$A$12:$F$22,5,FALSE) -> 94 | L64: =VLOOKUP(B64,'Lookup Tables'!$A$12:$F$22,6,FALSE) -> 96 | M64: 0 | N64: =IF(M66>0,M64/M66,0) -> 0 | O64: =VLOOKUP(B64,'Lookup Tables'!$A$12:$F$22,2,FALSE) -> 0.8
A65: =$E$42 -> FALSE | B65: Water Surfaces | F65: =VLOOKUP(B65,'Lookup Tables'!$A$12:$F$22,3,FALSE) -> 100 | H65: =VLOOKUP(B65,'Lookup Tables'!$A$12:$F$22,4,FALSE) -> 100 | J65: =VLOOKUP(B65,'Lookup Tables'!$A$12:$F$22,5,FALSE) -> 100 | L65: =VLOOKUP(B65,'Lookup Tables'!$A$12:$F$22,6,FALSE) -> 99 | M65: 0 | N65: =IF(M66>0,M65/M66,0) -> 0 | O65: =VLOOKUP(B65,'Lookup Tables'!$A$12:$F$22,2,FALSE) -> 1
A66: TRUE | B66: Total | E66: =SUM(E55:E65) -> 0 | G66: =SUM(G55:G65) -> 0 | I66: =SUM(I55:I65) -> 0 | K66: =SUM(K55:K65) -> 0 | M66: =SUM(E66:K66) -> 0 | N66: =IF(M66>0,M66/M66,0) -> 0 | O66: =IFERROR(SUMPRODUCT(O55:O65,M55:M65)/M66,"") -> 
A67: TRUE | M67: =IFERROR(IF(E47="-","Input disturbed drainage area in the drainage area summary table.",(IF(E47-M66<>0, "Disturbed drainage area from summary table does not match.",""))),"") -> 
A94: TRUE
A144: TRUE
A169: TRUE
A194: TRUE
A244: TRUE

Sheet Lookup Tables (hidden)
A2: Project Type | B2: MS4 PT Modifier | C2: CSS PT Modifier
A3: Site Development - New Development | B3: 0.85 | C3: 1
A4: Site Development - Redevelopment | B4: 0.4 | C4: 0.85 | I4: Ia=0.2S | J4: Ia=0.4S | K4: Ia=0.05S | L4: Ia=0.4S
A5: Public Roadway Improvements - New Development | B5: 0.4 | C5: 1 | H5: CN | I5: WQ 90% Rv | J5: WQ 90% Rv UnDev | K5: WQ Rv Dev. | L5: 10-yr Rv
A6: Public Roadway Improvements - Redevelopment | B6: 0.2 | C6: 0.65 | H6: 26 | I6: 0 | J6: 0 | K6: 0 | L6: 0
A7: Utility Improvements | B7: 0 | C7: 0 | H7: 27 | I7: 0 | J7: 0 | K7: 0 | L7: 0
H8: 28 | I8: 0 | J8: 0 | K8: 0 | L8: 0
C9: CN = 39.168+0.585*I | D9: CN = 60.665+0.3737*I | E9: CN = 74.084+0.2385*I | F9: CN = 80.45+0.1751*I | H9: 29 | I9: 0 | J9: 0 | K9: 0 | L9: 0
A10: Post -Project Runoff Coefficients | C10: CN, Hydrologic Soil Group | H10: 30 | I10: 0 | J10: 0 | K10: 0 | L10: 0
A11: Land Cover | B11: Rv | C11: A | D11: B | E11: C | F11: D | G11: % Impervious | H11: 31 | I11: 0 | J11: 0 | K11: 0 | L11: 0
A12: Natural Area | B12: 0 | C12: 30 | D12: 55 | E12: 70 | F12: 77 | G12: =IF((B12-0.05)/0.009<1,0,B12-0.05)/0.009 -> 0 | H12: 32 | I12: 0 | J12: 0 | K12: 0 | L12: 0
A13: Pervious Area | B13: 0.25 | C13: 39 | D13: 61 | E13: 74 | F13: 80 | G13: =IF((B13-0.05)/0.009<1,0,B13-0.05)/0.009 -> 22.22222222 | H13: 33 | I13: 0 | J13: 0 | K13: 0 | L13: 0
A14: Impervious Area | B14: 0.95 | C14: 98 | D14: 98 | E14: 98 | F14: 98 | G14: 100 | H14: 34 | I14: 0 | J14: 0 | K14: 0 | L14: 0
A15: Solar Farm - Native | B15: 0.4 | C15: =ROUNDUP(IF(39.168+0.585*$G15>100,100,39.168+0.585*$G15),0) -> 62 | D15: =ROUNDUP(IF(60.665+0.3737*$G15>100,100,60.665+0.3737*$G15),0) -> 76 | E15: =ROUNDUP(IF(74.084+0.2385*$G15>100,100,74.084+0.2385*$G15),0) -> 84 | F15: =ROUNDUP(IF(80.45+0.1751*$G15>100,100,80.45+0.1751*$G15),0) -> 88 | G15: 38.88888889 | H15: 35 | I15: 0 | J15: 0 | K15: 0 | L15: 0
A16: Solar Farm - Gravel | B16: 0.6 | C16: 75 | D16: =ROUNDUP(IF(60.665+0.3737*$G16>100,100,60.665+0.3737*$G16),0) -> 84 | E16: =ROUNDUP(IF(74.084+0.2385*$G16>100,100,74.084+0.2385*$G16),0) -> 89 | F16: =ROUNDUP(IF(80.45+0.1751*$G16>100,100,80.45+0.1751*$G16),0) -> 92 | G16: 61.11111111 | H16: 36 | I16: 0 | J16: 0 | K16: 0 | L16: 0
A17: Gravel - Overflow Parking Lots, Trails/Maintenance Paths, Substations | B17: 0.6 | C17: 75 | D17: 84 | E17: 89 | F17: 92 | G17: 61.11111111 | H17: 37 | I17: 0 | J17: 0 | K17: 0 | L17: 0
A18: Gravel - Primary Parking Lots, Access Driveways, Railroad Ballasts | B18: 0.8 | C18: 88 | D18: 92 | E18: 94 | F18: 96 | G18: 83.33333333 | H18: 38 | I18: 0 | J18: 0 | K18: 0 | L18: 0
A19: Gravel - Public Road with Compacted Subgrade Material | B19: 0.95 | C19: 98 | D19: 99 | E19: 98 | F19: 98 | G19: 100 | H19: 39 | I19: 0 | J19: 0 | K19: 0 | L19: 0
A20: Artificial Turf - No Underdrain System | B20: 0.45 | C20: 66 | D20: 78 | E20: 85 | F20: 89 | G20: 44.44444444 | H20: 40 | I20: 0 | J20: 0 | K20: 0 | L20: 0
A21: Artificial Turf - Underdrain System | B21: 0.8 | C21: 88 | D21: 92 | E21: 94 | F21: 96 | G21: 83.33333333 | H21: 41 | I21: 0 | J21: 0 | K21: 0 | L21: 0
A22: Water Surfaces | B22: 1 | C22: 100 | D22: 100 | E22: 100 | F22: 99 | G22: 105.5555556 | H22: 42 | I22: 0 | J22: 0 | K22: 0 | L22: 0
H23: 43 | I23: 0 | J23: 0 | K23: 0 | L23: 0.0180878553
A24: GSI Types | B24: Runoff Reduction | C24: Assumption | H24: 44 | I24: 0 | J24: 0 | K24: 0 | L24: 0.05723905724
A25: Bioretention, Controlled Release | B25: 0.8 | C25: 60% (runoff reduction research) | H25: 45 | I25: 0 | J25: 0 | K25: 0 | L25: 0.09465020576
A26: Bioretention, Infiltration | B26: 1 | C26: 100% (all infiltration practices should get 100%) | H26: 46 | I26: 0 | J26: 0 | K26: 0 | L26: 0.1304347826
A27: Permeable Pavement, Controlled Release | B27: 0.65 | C27: 30% (runoff reduction research) | H27: 47 | I27: 0 | J27: 0 | K27: 0 | L27: 0.1646966115
A28: Permeable Pavement, Infiltration Only | B28: 1 | C28: 100% (all infiltration practices should get 100%) | H28: 48 | I28: 0 | J28: 0 | K28: 0 | L28: 0.1975308642
A29: Infiltration Trench, Infiltration Only | B29: 1 | C29: 100% (all infiltration practices should get 100%) | H29: 49 | I29: 0 | J29: 0 | K29: 0 | L29: 0.2290249433
A30: Infiltration Trench, Controlled Release | B30: 0.65 | H30: 50 | I30: 0 | J30: 0 | K30: 0.05082628812 | L30: 0.2592592593
A31: Wetland | B31: 0.5 | H31: 51 | I31: 0 | J31: 0 | K31: 0.05502914737 | L31: 0.2883079158
A32: Wet Detention Basin | B32: 0.1 | C32: 10% (of the permanent pool; summer evaporation over 3 days is less than 1 inch) | H32: 52 | I32: 0 | J32: 0 | K32: 0.05941382541 | L32: 0.3162393162
A33: Dry Detention Basin, Infiltration Only | B33: 1 | C33: 0% (runoff reduction research; I could live with 5-10% though) | H33: 53 | I33: 0 | J33: 0 | K33: 0.06398586368 | L33: 0.3431167016
A34: Dry Detention Basin, Controlled Release | B34: 0.6 | C34: 100% (assuming infiltration below the outlet) | H34: 54 | I34: 0 | J34: 0 | K34: 0.06875138212 | L34: 0.3689986283
A35: Subsurface Storage, Infiltration Only | B35: 1 | C35: 100% (if it’s infiltration, 0% if it’s just detention) | H35: 55 | I35: 0 | J35: 0 | K35: 0.07371710514 | L35: 0.3939393939
A36: Subsurface Storage, Controlled Release | B36: 0.5 | H36: 56 | I36: 0 | J36: 0 | K36: 0.07889039224 | L36: 0.417989418
A37: Green Roof | B37: 1 | C37: 100% (if we use the maximum water retention instead of porosity for the volume calculation) | H37: 57 | I37: 0 | J37: 0 | K37: 0.08427927396 | L37: 0.4411955815
A38: Blue Roof | B38: 0.2 | C38: 20%?? (I’m assuming a blue roof will typically have less than 6” of storage and a relatively high evaporation rate) | H38: 58 | I38: 0 | J38: 0 | K38: 0.08989249309 | L38: 0.4636015326
A39: Cistern | B39: 0.5 | C39: variable based on average 3-day drawdown. (I have a modeling spreadsheet I can share that is a bit more complex than that) | H39: 59 | I39: 0 | J39: 0 | K39: 0.09573955196 | L39: 0.4852479598
A40: Sheetflow to Pervious Area | B40: 0.5 | H40: 60 | I40: 0 | J40: 0 | K40: 0.101830766 | L40: 0.5061728395
A41: Downspout Disconnection | B41: 0.25 | H41: 61 | I41: 0 | J41: 0 | K41: 0.1081773246 | L41: 0.5264116576
A42: Sheetflow to Natural Area | B42: 1 | H42: 62 | I42: 0.005834183607 | J42: 0 | K42: 0.1147913595 | L42: 0.5459976105
A43: Existing Trees (Preserved) | B43: 20 | C43: ft3/tree | H43: 63 | I43: 0.04736157778 | J43: 0 | K43: 0.1216860223 | L43: 0.5649617872
A44: New Trees | B44: 10 | C44: ft3/tree | H44: 64 | I44: 0.08759124088 | J44: 0 | K44: 0.1288755713 | L44: 0.5833333333
H45: 65 | I45: 0.1265830682 | J45: 0 | K45: 0.1363754695 | L45: 0.6011396011
A46: Input Value Basis | H46: 66 | I46: 0.164393325 | J46: 0 | K46: 0.1442024951 | L46: 0.6184062851
A47: Actual measured values based on improvement plans | H47: 67 | I47: 0.2010749174 | J47: 0 | K47: 0.1523748658 | L47: 0.6351575456
A48: Estimated values based on development type | H48: 68 | I48: 0.2366776394 | J48: 0 | K48: 0.1609123791 | L48: 0.651416122
H49: 69 | I49: 0.2712483985 | J49: 0 | K49: 0.169836571 | L49: 0.6672034353
H50: 70 | I50: 0.3048314216 | J50: 0 | K50: 0.1791708951 | L50: 0.6825396825
H51: 71 | I51: 0.3374684441 | J51: 0 | K51: 0.1889409266 | L51: 0.6974439228
A52: Assumed Impervious Cover | H52: 72 | I52: 0.3691988826 | J52: 0 | K52: 0.1991745928 | L52: 0.7119341564
A53: Zoning Type | B53: Assumed Impervious Area | H53: 73 | I53: 0.400059994 | J53: 0 | K53: 0.2099024369 | L53: 0.7260273973
A54: Single Family Residential | B54: 0.4 | H54: 74 | I54: 0.4300870213 | J54: 0 | K54: 0.221157918 | L54: 0.7397397397
A55: Multifamily Residential | B55: 0.65 | H55: 75 | I55: 0.4593133279 | J55: 0.0002912006854 | K55: 0.2329777554 | L55: 0.7530864198
A56: Industrial | B56: 0.85 | H56: 76 | I56: 0.4877705212 | J56: 0.002552208358 | K56: 0.2454023232 | L56: 0.7660818713
A57: Commercial | B57: 0.9 | H57: 77 | I57: 0.5154885666 | J57: 0.007084863336 | K57: 0.2584761052 | L57: 0.7787397787
A58: Other | B58: N/A | H58: 78 | I58: 0.5424958929 | J58: 0.01393557134 | K58: 0.2722482197 | L58: 0.7910731244
H59: 79 | I59: 0.5688194894 | J59: 0.02315883196 | K59: 0.2867730282 | L59: 0.8030942335
H60: 80 | I60: 0.5944849959 | J60: 0.03481777258 | K60: 0.3021108437 | L60: 0.8148148148
H61: 81 | I61: 0.6195167863 | J61: 0.04898476967 | K61: 0.3183287572 | L61: 0.8262459991
H62: 82 | I62: 0.6439380452 | J62: 0.06574216819 | K62: 0.3355016075 | L62: 0.837398374
H63: 83 | I63: 0.6677708401 | J63: 0.08518311241 | K63: 0.3537131219 | L63: 0.848282017
H64: 84 | I64: 0.6910361874 | J64: 0.1074125034 | K64: 0.373057267 | L64: 0.8589065256
A65: GSI Material Types | B65: Porosity | H65: 85 | I65: 0.7137541148 | J65: 0.1325481017 | K65: 0.393639853 | L65: 0.8692810458
A66: Bioretention Soil | B66: 0.3 | H66: 86 | I66: 0.7359437183 | J66: 0.1607217976 | K66: 0.4155804507 | L66: 0.879414298
A67: Structural Soil | B67: 0.4 | H67: 87 | I67: 0.757623216 | J67: 0.192081074 | K67: 0.4390146938 | L67: 0.889314602
A68: Sand | B68: 0.3 | H68: 88 | I68: 0.7788099978 | J68: 0.2267906948 | K68: 0.4640970605 | L68: 0.898989899
A69: Storage Aggregate Media | B69: 0.4 | H69: 89 | I69: 0.7995206722 | J69: 0.2650346553 | K69: 0.4910042537 | L69: 0.9084477736
A70: Choker Course | B70: 0.3 | H70: 90 | I70: 0.8197711093 | J70: 0.3070184404 | K70: 0.5199393381 | L70: 0.9176954733
A71: Open Storage (Ponding Area) | B71: 1 | H71: 91 | I71: 0.8395764819 | J71: 0.3529716459 | K71: 0.551136836 | L71: 0.9267399267
A72: Green Roof Drainage Layer | H72: 92 | I72: 0.8589513029 | J72: 0.4031510282 | K72: 0.5848690548 | L72: 0.9355877617
A73: Green Roof Growing Media | H73: 93 | I73: 0.8779094611 | J73: 0.4578440656 | K73: 0.621454006 | L73: 0.9442453206
A74: Storage Chamber | H74: 94 | I74: 0.8964642543 | J74: 0.5173731291 | K74: 0.6612654033 | L74: 0.9527186761
H75: 95 | I75: 0.9146284202 | J75: 0.5821003863 | K75: 0.7047454068 | L75: 0.9610136452
A76: Yes | H76: 96 | I76: 0.932414166 | J76: 0.6524335907 | K76: 0.7524210337 | L76: 0.9691358025
A77: No | H77: 97 | I77: 0.9498331954 | J77: 0.7288329444 | K77: 0.8049255301 | L77: 0.9770904926
H78: 98 | I78: 0.9668967344 | J78: 0.8118192741 | K78: 0.8630265447 | L78: 0.984882842
A79: Combined Sewer System
A80: Separate Storm Sewer System

Sheet Drainage Tables (hidden)
A2: TRUE | B2: Individual Drainage Area Summary Table ID: | S2: Disturbed Drainage Area (sf)
A3: TRUE | B3: Is this drainage area controlled? | S3: RRV Prior to Reductions (cf)
A4: TRUE | B4: Disturbed drainage area (ft2) | S4: RRVreductions (cf)
A5: TRUE | B5: =IF(E3="No", "Uncontrolled Retention Volume, (ft³)", IF(AND(E3="Yes", 'Site Inputs'!$E$19="NA"), "RRV Prior to Reductions, (ft³)", IF(AND(E3="Yes", 'Site Inputs'!$E$19>0), "Adjusted RRV Prior to Reductions, (ft³)", "RRV Prior to Reductions, (ft³)"))) -> RRV Prior to Reductions, (ft³) | E5: =IFERROR(IF(E3="Yes",IF('Site Inputs'!$E$19="NA",'Site Inputs'!$E$12/12*'Site Inputs'!$E$13*M23*O23,'Site Inputs'!$E$12/12*'Site Inputs'!$E$19*M23*O23),'Site Inputs'!$E$12/12*'Site Inputs'!$E$13*M23*O23),0) -> 0 | F5: Equation 5602-9 | S5: RRV After Reductions (cf)
A6: TRUE | B6: Pervious Area Weighted Rv | E6: =IF(E3="No","NA",IFERROR((M12*O12+M13*O13+M15*O15+M16*O16+M17*O17+M18*O18+M20*O20+M21*O21)/(M12+M13+M15+M16+M17+M18+M20+M21),"-")) -> - | S6: Retention Volume Achieved (cf)
A7: TRUE | B7: Impervious Area Weighted Rv | E7: =IF(E3="No","NA",IFERROR((O14*M14++M19*O19+O22*M22)/(M14+M19+M22),"-")) -> -
A8: TRUE | B8: Post-Project Condition Weighted CN | E8: =IFERROR((SUMPRODUCT(E12:E22,F12:F22)+SUMPRODUCT(G12:G22,H12:H22)+SUMPRODUCT(I12:I22,J12:J22)+SUMPRODUCT(K12:K22,L12:L22))/M23,"-") -> -
A9: TRUE
A10: TRUE | B10: ="Post-Project Cover Type Area Table for Drainage Area "&E2 -> Post-Project Cover Type Area Table for Drainage Area | E10: Area (ft2)
A11: TRUE | B11: Cover Type | E11: Soil Type A | F11: CN | G11: Soil Type B | H11: CN | I11: Soil Type C | J11: CN | K11: Soil Type D | L11: CN | M11: Total | N11: % Cover | O11: Rv
A12: ='Site Inputs'!$E$32 -> FALSE | B12: Natural Area | F12: =VLOOKUP(B12,'Lookup Tables'!$A$12:$F$22,3,FALSE) -> 30 | H12: =VLOOKUP(B12,'Lookup Tables'!$A$12:$F$22,4,FALSE) -> 55 | J12: =VLOOKUP(B12,'Lookup Tables'!$A$12:$F$22,5,FALSE) -> 70 | L12: =VLOOKUP(B12,'Lookup Tables'!$A$12:$F$22,6,FALSE) -> 77 | M12: =E12+G12+I12+K12 -> 0 | N12: =IF(M23>0,M12/M23,0) -> 0 | O12: =VLOOKUP(B12,'Lookup Tables'!$A$12:$F$22,2,FALSE) -> 0
A13: ='Site Inputs'!$E$33 -> FALSE | B13: Pervious Area | F13: =VLOOKUP(B13,'Lookup Tables'!$A$12:$F$22,3,FALSE) -> 39 | H13: =VLOOKUP(B13,'Lookup Tables'!$A$12:$F$22,4,FALSE) -> 61 | J13: =VLOOKUP(B13,'Lookup Tables'!$A$12:$F$22,5,FALSE) -> 74 | L13: =VLOOKUP(B13,'Lookup Tables'!$A$12:$F$22,6,FALSE) -> 80 | M13: =E13+G13+I13+K13 -> 0 | N13: =IF(M23>0,M13/M23,0) -> 0 | O13: =VLOOKUP(B13,'Lookup Tables'!$A$12:$F$22,2,FALSE) -> 0.25
A14: ='Site Inputs'!$E$34 -> FALSE | B14: Impervious Area | F14: =VLOOKUP(B14,'Lookup Tables'!$A$12:$F$22,3,FALSE) -> 98 | H14: =VLOOKUP(B14,'Lookup Tables'!$A$12:$F$22,4,FALSE) -> 98 | J14: =VLOOKUP(B14,'Lookup Tables'!$A$12:$F$22,5,FALSE) -> 98 | L14: =VLOOKUP(B14,'Lookup Tables'!$A$12:$F$22,6,FALSE) -> 98 | M14: 0 | N14: =IF(M23>0,M14/M23,0) -> 0 | O14: =VLOOKUP(B14,'Lookup Tables'!$A$12:$F$22,2,FALSE) -> 0.95
A15: ='Site Inputs'!$E$35 -> FALSE | B15: Solar Farm - Native | F15: =VLOOKUP(B15,'Lookup Tables'!$A$12:$F$22,3,FALSE) -> 62 | H15: =VLOOKUP(B15,'Lookup Tables'!$A$12:$F$22,4,FALSE) -> 76 | J15: =VLOOKUP(B15,'Lookup Tables'!$A$12:$F$22,5,FALSE) -> 84 | L15: =VLOOKUP(B15,'Lookup Tables'!$A$12:$F$22,6,FALSE) -> 88 | M15: 0 | N15: =IF(M23>0,M15/M23,0) -> 0 | O15: =VLOOKUP(B15,'Lookup Tables'!$A$12:$F$22,2,FALSE) -> 0.4
A16: ='Site Inputs'!$E$36 -> FALSE | B16: Solar Farm - Gravel | F16: =VLOOKUP(B16,'Lookup Tables'!$A$12:$F$22,3,FALSE) -> 75 | H16: =VLOOKUP(B16,'Lookup Tables'!$A$12:$F$22,4,FALSE) -> 84 | J16: =VLOOKUP(B16,'Lookup Tables'!$A$12:$F$22,5,FALSE) -> 89 | L16: =VLOOKUP(B16,'Lookup Tables'!$A$12:$F$22,6,FALSE) -> 92 | M16: 0 | N16: =IF(M23>0,M16/M23,0) -> 0 | O16: =VLOOKUP(B16,'Lookup Tables'!$A$12:$F$22,2,FALSE) -> 0.6
A17: ='Site Inputs'!$E$37 -> FALSE | B17: Gravel - Overflow Parking Lots, Trails/Maintenance Paths, Substations | F17: =VLOOKUP(B17,'Lookup Tables'!$A$12:$F$22,3,FALSE) -> 75 | H17: =VLOOKUP(B17,'Lookup Tables'!$A$12:$F$22,4,FALSE) -> 84 | J17: =VLOOKUP(B17,'Lookup Tables'!$A$12:$F$22,5,FALSE) -> 89 | L17: =VLOOKUP(B17,'Lookup Tables'!$A$12:$F$22,6,FALSE) -> 92 | M17: 0 | N17: =IF(M23>0,M17/M23,0) -> 0 | O17: =VLOOKUP(B17,'Lookup Tables'!$A$12:$F$22,2,FALSE) -> 0.6
A18: ='Site Inputs'!$E$38 -> FALSE | B18: Gravel - Primary Parking Lots, Access Driveways, Railroad Ballasts | F18: =VLOOKUP(B18,'Lookup Tables'!$A$12:$F$22,3,FALSE) -> 88 | H18: =VLOOKUP(B18,'Lookup Tables'!$A$12:$F$22,4,FALSE) -> 92 | J18: =VLOOKUP(B18,'Lookup Tables'!$A$12:$F$22,5,FALSE) -> 94 | L18: =VLOOKUP(B18,'Lookup Tables'!$A$12:$F$22,6,FALSE) -> 96 | M18: 0 | N18: =IF(M23>0,M18/M23,0) -> 0 | O18: =VLOOKUP(B18,'Lookup Tables'!$A$12:$F$22,2,FALSE) -> 0.8
A19: ='Site Inputs'!$E$39 -> FALSE | B19: Gravel - Public Road with Compacted Subgrade Material | F19: =VLOOKUP(B19,'Lookup Tables'!$A$12:$F$22,3,FALSE) -> 98 | H19: =VLOOKUP(B19,'Lookup Tables'!$A$12:$F$22,4,FALSE) -> 99 | J19: =VLOOKUP(B19,'Lookup Tables'!$A$12:$F$22,5,FALSE) -> 98 | L19: =VLOOKUP(B19,'Lookup Tables'!$A$12:$F$22,6,FALSE) -> 98 | M19: 0 | N19: =IF(M23>0,M19/M23,0) -> 0 | O19: =VLOOKUP(B19,'Lookup Tables'!$A$12:$F$22,2,FALSE) -> 0.95
A20: ='Site Inputs'!$E$40 -> FALSE | B20: Artificial Turf - No Underdrain System | F20: =VLOOKUP(B20,'Lookup Tables'!$A$12:$F$22,3,FALSE) -> 66 | H20: =VLOOKUP(B20,'Lookup Tables'!$A$12:$F$22,4,FALSE) -> 78 | J20: =VLOOKUP(B20,'Lookup Tables'!$A$12:$F$22,5,FALSE) -> 85 | L20: =VLOOKUP(B20,'Lookup Tables'!$A$12:$F$22,6,FALSE) -> 89 | M20: 0 | N20: =IF(M23>0,M20/M23,0) -> 0 | O20: =VLOOKUP(B20,'Lookup Tables'!$A$12:$F$22,2,FALSE) -> 0.45
A21: ='Site Inputs'!$E$41 -> FALSE | B21: Artificial Turf - Underdrain System | F21: =VLOOKUP(B21,'Lookup Tables'!$A$12:$F$22,3,FALSE) -> 88 | H21: =VLOOKUP(B21,'Lookup Tables'!$A$12:$F$22,4,FALSE) -> 92 | J21: =VLOOKUP(B21,'Lookup Tables'!$A$12:$F$22,5,FALSE) -> 94 | L21: =VLOOKUP(B21,'Lookup Tables'!$A$12:$F$22,6,FALSE) -> 96 | M21: 0 | N21: =IF(M23>0,M21/M23,0) -> 0 | O21: =VLOOKUP(B21,'Lookup Tables'!$A$12:$F$22,2,FALSE) -> 0.8
A22: ='Site Inputs'!$E$42 -> FALSE | B22: Water Surfaces | F22: =VLOOKUP(B22,'Lookup Tables'!$A$12:$F$22,3,FALSE) -> 100 | H22: =VLOOKUP(B22,'Lookup Tables'!$A$12:$F$22,4,FALSE) -> 100 | J22: =VLOOKUP(B22,'Lookup Tables'!$A$12:$F$22,5,FALSE) -> 100 | L22: =VLOOKUP(B22,'Lookup Tables'!$A$12:$F$22,6,FALSE) -> 99 | M22: 0 | N22: =IF(M23>0,M22/M23,0) -> 0 | O22: =VLOOKUP(B22,'Lookup Tables'!$A$12:$F$22,2,FALSE) -> 1
A23: TRUE | B23: Total | E23: =SUM(E12:E22) -> 0 | G23: =SUM(G12:G22) -> 0 | I23: =SUM(I12:I22) -> 0 | K23: =SUM(K12:K22) -> 0 | M23: =SUM(E23:K23) -> 0 | N23: =IF(M23>0,M23/M23,0) -> 0 | O23: =IFERROR(SUMPRODUCT(O12:O22,M12:M22)/M23,"") -> 
A24: TRUE | M24: =IFERROR(IF(E4="-","Input disturbed drainage area in the drainage area summary table.",(IF(E4-M23<>0, "Disturbed drainage area from summary table does not match.",""))),"") -> 
A25: TRUE
A26: TRUE

Sheet DA # (hidden)
B2: ="Design Worksheet for Drainage Area "&D4&"" -> Design Worksheet for Drainage Area
B4: Drainage Area ID
B5: Is this drainage area controlled? | E5: =IF(D5="No","Check input in the Drainage Area Summary Table in the Summary sheet. If this drainage area is truly meant to be uncontrolled, delete this tab.","") -> 
B6: Disturbed drainage area (ft2) | E6: =IF(D6="-","Input the disturbed drainage area in the Drainage Area Summary Table in the Summary sheet.","") -> 
B7: =IF('Site Inputs'!$E$19="NA","RRV Prior to Reductions, (ft³)", "Adjusted RRV Prior to Reductions, (ft³)") -> RRV Prior to Reductions, (ft³) | E7: =IF(D7="-","Complete cover type area calcuations for this drainage area in the Summary sheet.","") -> 
B8: Pervious Area Weighted Rv
B9: Impervious Area Weighted Rv
B10: Post-Project Condition Weighted CN
B13: Required Retention Volume Reductions (RRVReductions)
B15: Preservation/Restoration, & Disconnection RRVreductions | D15: Natural or Pervious Area Footprint (ft2) | E15: Pervious Tributary Area (ft2) (PTributary Area) | F15: Impervious Tributary Area (ft2) (ITributary Area) | G15: Runoff Reduction Credit | H15: Retention Volume Credited (ft3) RRVreduction
B16: Sheetflow to Natural Area | G16: =VLOOKUP(B16,'Lookup Tables'!$A$25:$B$249,2,FALSE) -> 1 | H16: =IFERROR((IF(D16>0.5*(F16+E16),'Site Inputs'!$E$13/12*(0.95*F16)*G16,0)),0) -> 0 | I16: Equations 5602-1 and 5602-2
B17: Sheetflow to Pervious Area | G17: =VLOOKUP(B17,'Lookup Tables'!$A$25:$B$249,2,FALSE) -> 0.5 | H17: =IFERROR(IF(D17>F17,'Site Inputs'!$E$13/12*(0.95*F17)*G17,0),0) -> 0 | I17: Equations 5602-3 and 5602-4
B18: Downspout Disconnection | G18: =VLOOKUP(B18,'Lookup Tables'!$A$25:$B$249,2,FALSE) -> 0.25 | H18: =IFERROR(IF(D18>F18,'Site Inputs'!$E$12/12*(0.95*F18)*G18,0),0) -> 0 | I18: Equations 5602-5 and 5602-6
B20: Tree RRVreductions | D20: Number of Trees (Each) | E20: Runoff Reduction Credit (ft3/tree) | F20: Retention Volume Credited (ft3) RRVreduction
B21: Existing Trees (Preserved) | E21: =VLOOKUP(B21,Table1[[GSI Types]:[Runoff Reduction]],2,FALSE) -> 20 | F21: =IF(E21*D21=0,0,E21*D21) -> 0 | G21: Equation 5602-7
B22: New Trees | E22: =VLOOKUP(B22,Table1[[GSI Types]:[Runoff Reduction]],2,FALSE) -> 10 | F22: =IF(E22*D22=0,0,E22*D22) -> 0 | G22: Equation 5602-8
B24: Total Reductions applied to RRV (RRVreduction), ft3 | D24: =SUM(H16:H18)+SUM(F21:F22) -> 0 | E24: Equation 5602-17
B25: RRV After Reductions (RRVDA#), ft3 | D25: =IFERROR($D$7-D24,0) -> 0 | E25: Equation 5602-18
B26: % Reduction in RRV | D26: =IFERROR(($D$7-D25)/$D$7,0) -> 0
B29: Retention Practices
B31: Select material types and storage layers used for this design:
B32: Open Storage (Ponding Area) | D32: FALSE
B33: Bioretention Soil | D33: FALSE
B34: Structural Soil | D34: FALSE
B35: Sand | D35: FALSE
B36: Storage Aggregate Media | D36: FALSE
B37: Choker Course | D37: FALSE
B38: Green Roof Drainage Layer | D38: FALSE
B39: Green Roof Growing Media | D39: FALSE
B40: Storage Chamber(s) | D40: FALSE | F40: =IF('Site Inputs'!E19="NA","PT%","Adjusted PT%") -> PT% | G40: =IF('Site Inputs'!E19="NA",'Site Inputs'!E13,'Site Inputs'!E19) -> 0
H42: Equation 5605-1 | AP42: Equation 5605-2 | AQ42: Table 5605-1
B43: Retention Facility ID | C43: Practice | D43: Downstream Retention Facility ID | E43: Pervious Drainage Area | F43: Impervious Drainage Area | G43: Target RRV Prior to Reductions) (ft3) | H43: Retention Volume Provided (ft3) (VR) | I43: Bypass RRV (ft3) | J43: Open Storage (Ponding) | M43: Bioretention Soil | Q43: Structural Soil | U43: Sand | Y43: Storage Aggregate Media | AC43: Choker Course | AG43: Green Roof Drainage Layer | AK43: Green Roof Growing Media | AO43: Storage Chamber | AP43: Total Static Storage Volume (ft3) (GSIstorage) | AQ43: Runoff Reduction Factor (%) (GSIRRF) | AR43: Retention Volume Provided (ft3) (VR) | AS43: Maximum Retention Credit Allowed (ft3)
E44: (ft2) | F44: (ft2) | J44: Area (ft2) Ap | K44: Height (ft) hp | L44: Volume (ft3) VP | M44: Area (ft2) Am | N44: n | O44: Height (ft) hm | P44: Volume (ft3) Vm | Q44: Area (ft2) Am | R44: n | S44: Height (ft) hm | T44: Volume (ft3) Vm | U44: Area (ft2) Am | V44: n | W44: Height (ft) hm | X44: Volume (ft3) Vm | Y44: Area (ft2) Am | Z44: n | AA44: Height (ft) hm | AB44: Volume (ft3) Vm | AC44: Area (ft2) Am | AD44: n | AE44: Height (ft) hm | AF44: Volume (ft3) Vm | AG44: Area (ft2) Am | AH44: n | AI44: Height (ft) hm | AJ44: Volume (ft3) Vm | AK44: Area (ft2) Am | AL44: n | AM44: Height (ft) hm | AN44: Volume (ft3) Vm | AO44: Volume (ft3) Vs
G45: =IFERROR(($G$40*'Site Inputs'!$E$12/12*(E45*$D$8+F45*$D$9)+IFERROR(SUMIF($D$45:$D$64,B45,$I$45:$I$64),0)),0) -> 0 | H45: =IFERROR(MIN(AQ45*AP45,AS45),0) -> 0 | I45: =IF(G45-H45>0,G45-H45,"") ->  | L45: =+IF(J45="","0",J45*1*K45) -> 0 | N45: =IFERROR(VLOOKUP(M$43,'Lookup Tables'!$A$66:$B$73,2,FALSE),"") -> 0.3 | P45: =+IF(M45="","0",M45*N45*O45) -> 0 | R45: =IFERROR(VLOOKUP(Q$43,'Lookup Tables'!$A$66:$B$73,2,FALSE),"") -> 0.4 | T45: =+IF(Q45="","0",Q45*R45*S45) -> 0 | V45: =IFERROR(VLOOKUP(U$43,'Lookup Tables'!$A$66:$B$73,2,FALSE),"") -> 0.3 | X45: =+IF(U45="","0",U45*V45*W45) -> 0 | Z45: =IFERROR(VLOOKUP(Y$43,'Lookup Tables'!$A$66:$B$73,2,FALSE),"") -> 0.4 | AB45: =+IF(Y45="","0",Y45*Z45*AA45) -> 0 | AD45: =IFERROR(VLOOKUP(AC$43,'Lookup Tables'!$A$66:$B$73,2,FALSE),"") -> 0.3 | AF45: =+IF(AC45="","0",AC45*AD45*AE45) -> 0 | AJ45: =+IF(AG45="","0",AG45*AH45*AI45) -> 0 | AN45: =+IF(AK45="","0",AK45*AL45*AM45) -> 0 | AP45: =+IFERROR((L45+X45+T45+P45+AB45+AF45+AJ45+AO45+AN45),"") -> 0 | AQ45: =IFERROR(VLOOKUP(C45,'Lookup Tables'!$A$25:$B$197,2,FALSE),"") ->  | AR45: =IFERROR(AP45*AQ45,"") ->  | AS45: =IFERROR(('Site Inputs'!$E$12/12*(E45*$D$8+F45*$D$9)+IFERROR(SUMIF($D$45:$D$64,B45,$I$45:$I$64),0)),0) -> 0 | AT45: =IF(AR45="","",IF(AR45>AS45*1.1,"Facility size is larger than needed to meet the Required Retention Volume. Consider adjusting the design parameters to more closely right-size this facility. Credit will only be given for up to the maximum retention credit allowed based on the WQv.","")) -> 
G46: =IFERROR(($G$40*'Site Inputs'!$E$12/12*(E46*$D$8+F46*$D$9)+IFERROR(SUMIF($D$45:$D$64,B46,$I$45:$I$64),0)),0) -> 0 | H46: =IFERROR(MIN(AQ46*AP46,AS46),0) -> 0 | I46: =IF(G46-H46>0,G46-H46,"") ->  | L46: =+IF(J46="","0",J46*1*K46) -> 0 | N46: =IFERROR(VLOOKUP(M$43,'Lookup Tables'!$A$66:$B$73,2,FALSE),"") -> 0.3 | P46: =+IF(M46="","0",M46*N46*O46) -> 0 | R46: =IFERROR(VLOOKUP(Q$43,'Lookup Tables'!$A$66:$B$73,2,FALSE),"") -> 0.4 | T46: =+IF(Q46="","0",Q46*R46*S46) -> 0 | V46: =IFERROR(VLOOKUP(U$43,'Lookup Tables'!$A$66:$B$73,2,FALSE),"") -> 0.3 | X46: =+IF(U46="","0",U46*V46*W46) -> 0 | Z46: =IFERROR(VLOOKUP(Y$43,'Lookup Tables'!$A$66:$B$73,2,FALSE),"") -> 0.4 | AB46: =+IF(Y46="","0",Y46*Z46*AA46) -> 0 | AD46: =IFERROR(VLOOKUP(AC$43,'Lookup Tables'!$A$66:$B$73,2,FALSE),"") -> 0.3 | AF46: =+IF(AC46="","0",AC46*AD46*AE46) -> 0 | AJ46: =+IF(AG46="","0",AG46*AH46*AI46) -> 0 | AN46: =+IF(AK46="","0",AK46*AL46*AM46) -> 0 | AP46: =+IFERROR((L46+X46+T46+P46+AB46+AF46+AJ46+AO46+AN46),"") -> 0 | AQ46: =IFERROR(VLOOKUP(C46,'Lookup Tables'!$A$25:$B$197,2,FALSE),"") ->  | AR46: =IFERROR(AP46*AQ46,"") ->  | AS46: =IFERROR(('Site Inputs'!$E$12/12*(E46*$D$8+F46*$D$9)+IFERROR(SUMIF($D$45:$D$64,B46,$I$45:$I$64),0)),0) -> 0 | AT46: =IF(AR46="","",IF(AR46>AS46*1.1,"Facility size is larger than needed to meet the Required Retention Volume. Consider adjusting the design parameters to more closely right-size this facility. Credit will only be given for up to the maximum retention credit allowed based on the WQv.","")) -> 
G47: =IFERROR(($G$40*'Site Inputs'!$E$12/12*(E47*$D$8+F47*$D$9)+IFERROR(SUMIF($D$45:$D$64,B47,$I$45:$I$64),0)),0) -> 0 | H47: 0 | L47: =+IF(J47="","0",J47*1*K47) -> 0 | N47: =IFERROR(VLOOKUP(M$43,'Lookup Tables'!$A$66:$B$73,2,FALSE),"") -> 0.3 | P47: =+IF(M47="","0",M47*N47*O47) -> 0 | R47: =IFERROR(VLOOKUP(Q$43,'Lookup Tables'!$A$66:$B$73,2,FALSE),"") -> 0.4 | T47: =+IF(Q47="","0",Q47*R47*S47) -> 0 | V47: =IFERROR(VLOOKUP(U$43,'Lookup Tables'!$A$66:$B$73,2,FALSE),"") -> 0.3 | X47: =+IF(U47="","0",U47*V47*W47) -> 0 | Z47: =IFERROR(VLOOKUP(Y$43,'Lookup Tables'!$A$66:$B$73,2,FALSE),"") -> 0.4 | AB47: =+IF(Y47="","0",Y47*Z47*AA47) -> 0 | AD47: =IFERROR(VLOOKUP(AC$43,'Lookup Tables'!$A$66:$B$73,2,FALSE),"") -> 0.3 | AF47: =+IF(AC47="","0",AC47*AD47*AE47) -> 0 | AJ47: =+IF(AG47="","0",AG47*AH47*AI47) -> 0 | AN47: =+IF(AK47="","0",AK47*AL47*AM47) -> 0 | AP47: =+IFERROR((L47+X47+T47+P47+AB47+AF47+AJ47+AO47+AN47),"") -> 0 | AQ47: =IFERROR(VLOOKUP(C47,'Lookup Tables'!$A$25:$B$197,2,FALSE),"") ->  | AS47: =IFERROR(('Site Inputs'!$E$12/12*(E47*$D$8+F47*$D$9)+IFERROR(SUMIF($D$45:$D$64,B47,$I$45:$I$64),0)),0) -> 0
G48: =IFERROR(($G$40*'Site Inputs'!$E$12/12*(E48*$D$8+F48*$D$9)+IFERROR(SUMIF($D$45:$D$64,B48,$I$45:$I$64),0)),0) -> 0 | H48: 0 | L48: =+IF(J48="","0",J48*1*K48) -> 0 | N48: =IFERROR(VLOOKUP(M$43,'Lookup Tables'!$A$66:$B$73,2,FALSE),"") -> 0.3 | P48: =+IF(M48="","0",M48*N48*O48) -> 0 | R48: =IFERROR(VLOOKUP(Q$43,'Lookup Tables'!$A$66:$B$73,2,FALSE),"") -> 0.4 | T48: =+IF(Q48="","0",Q48*R48*S48) -> 0 | V48: =IFERROR(VLOOKUP(U$43,'Lookup Tables'!$A$66:$B$73,2,FALSE),"") -> 0.3 | X48: =+IF(U48="","0",U48*V48*W48) -> 0 | Z48: =IFERROR(VLOOKUP(Y$43,'Lookup Tables'!$A$66:$B$73,2,FALSE),"") -> 0.4 | AB48: =+IF(Y48="","0",Y48*Z48*AA48) -> 0 | AD48: =IFERROR(VLOOKUP(AC$43,'Lookup Tables'!$A$66:$B$73,2,FALSE),"") -> 0.3 | AF48: =+IF(AC48="","0",AC48*AD48*AE48) -> 0 | AJ48: =+IF(AG48="","0",AG48*AH48*AI48) -> 0 | AN48: =+IF(AK48="","0",AK48*AL48*AM48) -> 0 | AP48: =+IFERROR((L48+X48+T48+P48+AB48+AF48+AJ48+AO48+AN48),"") -> 0 | AQ48: =IFERROR(VLOOKUP(C48,'Lookup Tables'!$A$25:$B$197,2,FALSE),"") ->  | AS48: =IFERROR(('Site Inputs'!$E$12/12*(E48*$D$8+F48*$D$9)+IFERROR(SUMIF($D$45:$D$64,B48,$I$45:$I$64),0)),0) -> 0
G49: =IFERROR(($G$40*'Site Inputs'!$E$12/12*(E49*$D$8+F49*$D$9)+IFERROR(SUMIF($D$45:$D$64,B49,$I$45:$I$64),0)),0) -> 0 | H49: 0 | L49: =+IF(J49="","0",J49*1*K49) -> 0 | N49: =IFERROR(VLOOKUP(M$43,'Lookup Tables'!$A$66:$B$73,2,FALSE),"") -> 0.3 | P49: =+IF(M49="","0",M49*N49*O49) -> 0 | R49: =IFERROR(VLOOKUP(Q$43,'Lookup Tables'!$A$66:$B$73,2,FALSE),"") -> 0.4 | T49: =+IF(Q49="","0",Q49*R49*S49) -> 0 | V49: =IFERROR(VLOOKUP(U$43,'Lookup Tables'!$A$66:$B$73,2,FALSE),"") -> 0.3 | X49: =+IF(U49="","0",U49*V49*W49) -> 0 | Z49: =IFERROR(VLOOKUP(Y$43,'Lookup Tables'!$A$66:$B$73,2,FALSE),"") -> 0.4 | AB49: =+IF(Y49="","0",Y49*Z49*AA49) -> 0 | AD49: =IFERROR(VLOOKUP(AC$43,'Lookup Tables'!$A$66:$B$73,2,FALSE),"") -> 0.3 | AF49: =+IF(AC49="","0",AC49*AD49*AE49) -> 0 | AJ49: =+IF(AG49="","0",AG49*AH49*AI49) -> 0 | AN49: =+IF(AK49="","0",AK49*AL49*AM49) -> 0 | AP49: =+IFERROR((L49+X49+T49+P49+AB49+AF49+AJ49+AO49+AN49),"") -> 0 | AQ49: =IFERROR(VLOOKUP(C49,'Lookup Tables'!$A$25:$B$197,2,FALSE),"") ->  | AS49: =IFERROR(('Site Inputs'!$E$12/12*(E49*$D$8+F49*$D$9)+IFERROR(SUMIF($D$45:$D$64,B49,$I$45:$I$64),0)),0) -> 0
G50: =IFERROR(($G$40*'Site Inputs'!$E$12/12*(E50*$D$8+F50*$D$9)+IFERROR(SUMIF($D$45:$D$64,B50,$I$45:$I$64),0)),0) -> 0 | H50: 0 | L50: =+IF(J50="","0",J50*1*K50) -> 0 | N50: =IFERROR(VLOOKUP(M$43,'Lookup Tables'!$A$66:$B$73,2,FALSE),"") -> 0.3 | P50: =+IF(M50="","0",M50*N50*O50) -> 0 | R50: =IFERROR(VLOOKUP(Q$43,'Lookup Tables'!$A$66:$B$73,2,FALSE),"") -> 0.4 | T50: =+IF(Q50="","0",Q50*R50*S50) -> 0 | V50: =IFERROR(VLOOKUP(U$43,'Lookup Tables'!$A$66:$B$73,2,FALSE),"") -> 0.3 | X50: =+IF(U50="","0",U50*V50*W50) -> 0 | Z50: =IFERROR(VLOOKUP(Y$43,'Lookup Tables'!$A$66:$B$73,2,FALSE),"") -> 0.4 | AB50: =+IF(Y50="","0",Y50*Z50*AA50) -> 0 | AD50: =IFERROR(VLOOKUP(AC$43,'Lookup Tables'!$A$66:$B$73,2,FALSE),"") -> 0.3 | AF50: =+IF(AC50="","0",AC50*AD50*AE50) -> 0 | AJ50: =+IF(AG50="","0",AG50*AH50*AI50) -> 0 | AN50: =+IF(AK50="","0",AK50*AL50*AM50) -> 0 | AP50: =+IFERROR((L50+X50+T50+P50+AB50+AF50+AJ50+AO50+AN50),"") -> 0 | AQ50: =IFERROR(VLOOKUP(C50,'Lookup Tables'!$A$25:$B$197,2,FALSE),"") ->  | AS50: =IFERROR(('Site Inputs'!$E$12/12*(E50*$D$8+F50*$D$9)+IFERROR(SUMIF($D$45:$D$64,B50,$I$45:$I$64),0)),0) -> 0
G51: =IFERROR(($G$40*'Site Inputs'!$E$12/12*(E51*$D$8+F51*$D$9)+IFERROR(SUMIF($D$45:$D$64,B51,$I$45:$I$64),0)),0) -> 0 | H51: 0 | L51: 0 | N51: =IFERROR(VLOOKUP(M$43,'Lookup Tables'!$A$66:$B$73,2,FALSE),"") -> 0.3 | P51: 0 | R51: =IFERROR(VLOOKUP(Q$43,'Lookup Tables'!$A$66:$B$73,2,FALSE),"") -> 0.4 | T51: 0 | V51: =IFERROR(VLOOKUP(U$43,'Lookup Tables'!$A$66:$B$73,2,FALSE),"") -> 0.3 | X51: 0 | Z51: =IFERROR(VLOOKUP(Y$43,'Lookup Tables'!$A$66:$B$73,2,FALSE),"") -> 0.4 | AB51: 0 | AD51: =IFERROR(VLOOKUP(AC$43,'Lookup Tables'!$A$66:$B$73,2,FALSE),"") -> 0.3 | AF51: 0 | AJ51: 0 | AN51: 0 | AP51: 0 | AQ51: =IFERROR(VLOOKUP(C51,'Lookup Tables'!$A$25:$B$197,2,FALSE),"") ->  | AS51: =IFERROR(('Site Inputs'!$E$12/12*(E51*$D$8+F51*$D$9)+IFERROR(SUMIF($D$45:$D$64,B51,$I$45:$I$64),0)),0) -> 0
G52: =IFERROR(($G$40*'Site Inputs'!$E$12/12*(E52*$D$8+F52*$D$9)+IFERROR(SUMIF($D$45:$D$64,B52,$I$45:$I$64),0)),0) -> 0 | H52: 0 | L52: 0 | N52: =IFERROR(VLOOKUP(M$43,'Lookup Tables'!$A$66:$B$73,2,FALSE),"") -> 0.3 | P52: 0 | R52: =IFERROR(VLOOKUP(Q$43,'Lookup Tables'!$A$66:$B$73,2,FALSE),"") -> 0.4 | T52: 0 | V52: =IFERROR(VLOOKUP(U$43,'Lookup Tables'!$A$66:$B$73,2,FALSE),"") -> 0.3 | X52: 0 | Z52: =IFERROR(VLOOKUP(Y$43,'Lookup Tables'!$A$66:$B$73,2,FALSE),"") -> 0.4 | AB52: 0 | AD52: =IFERROR(VLOOKUP(AC$43,'Lookup Tables'!$A$66:$B$73,2,FALSE),"") -> 0.3 | AF52: 0 | AJ52: 0 | AN52: 0 | AP52: 0 | AQ52: =IFERROR(VLOOKUP(C52,'Lookup Tables'!$A$25:$B$197,2,FALSE),"") ->  | AS52: =IFERROR(('Site Inputs'!$E$12/12*(E52*$D$8+F52*$D$9)+IFERROR(SUMIF($D$45:$D$64,B52,$I$45:$I$64),0)),0) -> 0
G53: =IFERROR(($G$40*'Site Inputs'!$E$12/12*(E53*$D$8+F53*$D$9)+IFERROR(SUMIF($D$45:$D$64,B53,$I$45:$I$64),0)),0) -> 0 | H53: 0 | L53: 0 | N53: =IFERROR(VLOOKUP(M$43,'Lookup Tables'!$A$66:$B$73,2,FALSE),"") -> 0.3 | P53: 0 | R53: =IFERROR(VLOOKUP(Q$43,'Lookup Tables'!$A$66:$B$73,2,FALSE),"") -> 0.4 | T53: 0 | V53: =IFERROR(VLOOKUP(U$43,'Lookup Tables'!$A$66:$B$73,2,FALSE),"") -> 0.3 | X53: 0 | Z53: =IFERROR(VLOOKUP(Y$43,'Lookup Tables'!$A$66:$B$73,2,FALSE),"") -> 0.4 | AB53: 0 | AD53: =IFERROR(VLOOKUP(AC$43,'Lookup Tables'!$A$66:$B$73,2,FALSE),"") -> 0.3 | AF53: 0 | AJ53: 0 | AN53: 0 | AP53: 0 | AQ53: =IFERROR(VLOOKUP(C53,'Lookup Tables'!$A$25:$B$197,2,FALSE),"") ->  | AS53: =IFERROR(('Site Inputs'!$E$12/12*(E53*$D$8+F53*$D$9)+IFERROR(SUMIF($D$45:$D$64,B53,$I$45:$I$64),0)),0) -> 0
G54: =IFERROR(($G$40*'Site Inputs'!$E$12/12*(E54*$D$8+F54*$D$9)+IFERROR(SUMIF($D$45:$D$64,B54,$I$45:$I$64),0)),0) -> 0 | H54: 0 | L54: 0 | N54: =IFERROR(VLOOKUP(M$43,'Lookup Tables'!$A$66:$B$73,2,FALSE),"") -> 0.3 | P54: 0 | R54: =IFERROR(VLOOKUP(Q$43,'Lookup Tables'!$A$66:$B$73,2,FALSE),"") -> 0.4 | T54: 0 | V54: =IFERROR(VLOOKUP(U$43,'Lookup Tables'!$A$66:$B$73,2,FALSE),"") -> 0.3 | X54: 0 | Z54: =IFERROR(VLOOKUP(Y$43,'Lookup Tables'!$A$66:$B$73,2,FALSE),"") -> 0.4 | AB54: 0 | AD54: =IFERROR(VLOOKUP(AC$43,'Lookup Tables'!$A$66:$B$73,2,FALSE),"") -> 0.3 | AF54: 0 | AJ54: 0 | AN54: 0 | AP54: 0 | AQ54: =IFERROR(VLOOKUP(C54,'Lookup Tables'!$A$25:$B$197,2,FALSE),"") ->  | AS54: =IFERROR(('Site Inputs'!$E$12/12*(E54*$D$8+F54*$D$9)+IFERROR(SUMIF($D$45:$D$64,B54,$I$45:$I$64),0)),0) -> 0
G55: =IFERROR(($G$40*'Site Inputs'!$E$12/12*(E55*$D$8+F55*$D$9)+IFERROR(SUMIF($D$45:$D$64,B55,$I$45:$I$64),0)),0) -> 0 | H55: 0 | L55: 0 | N55: =IFERROR(VLOOKUP(M$43,'Lookup Tables'!$A$66:$B$73,2,FALSE),"") -> 0.3 | P55: 0 | R55: =IFERROR(VLOOKUP(Q$43,'Lookup Tables'!$A$66:$B$73,2,FALSE),"") -> 0.4 | T55: 0 | V55: =IFERROR(VLOOKUP(U$43,'Lookup Tables'!$A$66:$B$73,2,FALSE),"") -> 0.3 | X55: 0 | Z55: =IFERROR(VLOOKUP(Y$43,'Lookup Tables'!$A$66:$B$73,2,FALSE),"") -> 0.4 | AB55: 0 | AD55: =IFERROR(VLOOKUP(AC$43,'Lookup Tables'!$A$66:$B$73,2,FALSE),"") -> 0.3 | AF55: 0 | AJ55: 0 | AN55: 0 | AP55: 0 | AQ55: =IFERROR(VLOOKUP(C55,'Lookup Tables'!$A$25:$B$197,2,FALSE),"") ->  | AS55: =IFERROR(('Site Inputs'!$E$12/12*(E55*$D$8+F55*$D$9)+IFERROR(SUMIF($D$45:$D$64,B55,$I$45:$I$64),0)),0) -> 0
G56: =IFERROR(($G$40*'Site Inputs'!$E$12/12*(E56*$D$8+F56*$D$9)+IFERROR(SUMIF($D$45:$D$64,B56,$I$45:$I$64),0)),0) -> 0 | H56: 0 | L56: =+IF(J56="","0",J56*1*K56) -> 0 | N56: =IFERROR(VLOOKUP(M$43,'Lookup Tables'!$A$66:$B$73,2,FALSE),"") -> 0.3 | P56: 0 | R56: =IFERROR(VLOOKUP(Q$43,'Lookup Tables'!$A$66:$B$73,2,FALSE),"") -> 0.4 | T56: =+IF(Q56="","0",Q56*R56*S56) -> 0 | V56: =IFERROR(VLOOKUP(U$43,'Lookup Tables'!$A$66:$B$73,2,FALSE),"") -> 0.3 | X56: =+IF(U56="","0",U56*V56*W56) -> 0 | Z56: =IFERROR(VLOOKUP(Y$43,'Lookup Tables'!$A$66:$B$73,2,FALSE),"") -> 0.4 | AB56: =+IF(Y56="","0",Y56*Z56*AA56) -> 0 | AD56: =IFERROR(VLOOKUP(AC$43,'Lookup Tables'!$A$66:$B$73,2,FALSE),"") -> 0.3 | AF56: =+IF(AC56="","0",AC56*AD56*AE56) -> 0 | AJ56: =+IF(AG56="","0",AG56*AH56*AI56) -> 0 | AN56: =+IF(AK56="","0",AK56*AL56*AM56) -> 0 | AP56: =+IFERROR((L56+X56+T56+P56+AB56+AF56+AJ56+AO56+AN56),"") -> 0 | AQ56: =IFERROR(VLOOKUP(C56,'Lookup Tables'!$A$25:$B$197,2,FALSE),"") ->  | AS56: =IFERROR(('Site Inputs'!$E$12/12*(E56*$D$8+F56*$D$9)+IFERROR(SUMIF($D$45:$D$64,B56,$I$45:$I$64),0)),0) -> 0
G57: =IFERROR(($G$40*'Site Inputs'!$E$12/12*(E57*$D$8+F57*$D$9)+IFERROR(SUMIF($D$45:$D$64,B57,$I$45:$I$64),0)),0) -> 0 | H57: 0 | L57: =+IF(J57="","0",J57*1*K57) -> 0 | N57: =IFERROR(VLOOKUP(M$43,'Lookup Tables'!$A$66:$B$73,2,FALSE),"") -> 0.3 | P57: 0 | R57: =IFERROR(VLOOKUP(Q$43,'Lookup Tables'!$A$66:$B$73,2,FALSE),"") -> 0.4 | T57: =+IF(Q57="","0",Q57*R57*S57) -> 0 | V57: =IFERROR(VLOOKUP(U$43,'Lookup Tables'!$A$66:$B$73,2,FALSE),"") -> 0.3 | X57: =+IF(U57="","0",U57*V57*W57) -> 0 | Z57: =IFERROR(VLOOKUP(Y$43,'Lookup Tables'!$A$66:$B$73,2,FALSE),"") -> 0.4 | AB57: =+IF(Y57="","0",Y57*Z57*AA57) -> 0 | AD57: =IFERROR(VLOOKUP(AC$43,'Lookup Tables'!$A$66:$B$73,2,FALSE),"") -> 0.3 | AF57: =+IF(AC57="","0",AC57*AD57*AE57) -> 0 | AJ57: =+IF(AG57="","0",AG57*AH57*AI57) -> 0 | AN57: =+IF(AK57="","0",AK57*AL57*AM57) -> 0 | AP57: =+IFERROR((L57+X57+T57+P57+AB57+AF57+AJ57+AO57+AN57),"") -> 0 | AQ57: =IFERROR(VLOOKUP(C57,'Lookup Tables'!$A$25:$B$197,2,FALSE),"") ->  | AS57: =IFERROR(('Site Inputs'!$E$12/12*(E57*$D$8+F57*$D$9)+IFERROR(SUMIF($D$45:$D$64,B57,$I$45:$I$64),0)),0) -> 0
G58: =IFERROR(($G$40*'Site Inputs'!$E$12/12*(E58*$D$8+F58*$D$9)+IFERROR(SUMIF($D$45:$D$64,B58,$I$45:$I$64),0)),0) -> 0 | H58: 0 | L58: =+IF(J58="","0",J58*1*K58) -> 0 | N58: =IFERROR(VLOOKUP(M$43,'Lookup Tables'!$A$66:$B$73,2,FALSE),"") -> 0.3 | P58: 0 | R58: =IFERROR(VLOOKUP(Q$43,'Lookup Tables'!$A$66:$B$73,2,FALSE),"") -> 0.4 | T58: =+IF(Q58="","0",Q58*R58*S58) -> 0 | V58: =IFERROR(VLOOKUP(U$43,'Lookup Tables'!$A$66:$B$73,2,FALSE),"") -> 0.3 | X58: =+IF(U58="","0",U58*V58*W58) -> 0 | Z58: =IFERROR(VLOOKUP(Y$43,'Lookup Tables'!$A$66:$B$73,2,FALSE),"") -> 0.4 | AB58: =+IF(Y58="","0",Y58*Z58*AA58) -> 0 | AD58: =IFERROR(VLOOKUP(AC$43,'Lookup Tables'!$A$66:$B$73,2,FALSE),"") -> 0.3 | AF58: =+IF(AC58="","0",AC58*AD58*AE58) -> 0 | AJ58: =+IF(AG58="","0",AG58*AH58*AI58) -> 0 | AN58: =+IF(AK58="","0",AK58*AL58*AM58) -> 0 | AP58: =+IFERROR((L58+X58+T58+P58+AB58+AF58+AJ58+AO58+AN58),"") -> 0 | AQ58: =IFERROR(VLOOKUP(C58,'Lookup Tables'!$A$25:$B$197,2,FALSE),"") ->  | AS58: =IFERROR(('Site Inputs'!$E$12/12*(E58*$D$8+F58*$D$9)+IFERROR(SUMIF($D$45:$D$64,B58,$I$45:$I$64),0)),0) -> 0
G59: =IFERROR(($G$40*'Site Inputs'!$E$12/12*(E59*$D$8+F59*$D$9)+IFERROR(SUMIF($D$45:$D$64,B59,$I$45:$I$64),0)),0) -> 0 | H59: 0 | L59: =+IF(J59="","0",J59*1*K59) -> 0 | N59: =IFERROR(VLOOKUP(M$43,'Lookup Tables'!$A$66:$B$73,2,FALSE),"") -> 0.3 | P59: =+IF(M59="","0",M59*N59*O59) -> 0 | R59: =IFERROR(VLOOKUP(Q$43,'Lookup Tables'!$A$66:$B$73,2,FALSE),"") -> 0.4 | T59: =+IF(Q59="","0",Q59*R59*S59) -> 0 | V59: =IFERROR(VLOOKUP(U$43,'Lookup Tables'!$A$66:$B$73,2,FALSE),"") -> 0.3 | X59: =+IF(U59="","0",U59*V59*W59) -> 0 | Z59: =IFERROR(VLOOKUP(Y$43,'Lookup Tables'!$A$66:$B$73,2,FALSE),"") -> 0.4 | AB59: =+IF(Y59="","0",Y59*Z59*AA59) -> 0 | AD59: =IFERROR(VLOOKUP(AC$43,'Lookup Tables'!$A$66:$B$73,2,FALSE),"") -> 0.3 | AF59: =+IF(AC59="","0",AC59*AD59*AE59) -> 0 | AJ59: =+IF(AG59="","0",AG59*AH59*AI59) -> 0 | AN59: =+IF(AK59="","0",AK59*AL59*AM59) -> 0 | AP59: =+IFERROR((L59+X59+T59+P59+AB59+AF59+AJ59+AO59+AN59),"") -> 0 | AQ59: =IFERROR(VLOOKUP(C59,'Lookup Tables'!$A$25:$B$197,2,FALSE),"") ->  | AS59: =IFERROR(('Site Inputs'!$E$12/12*(E59*$D$8+F59*$D$9)+IFERROR(SUMIF($D$45:$D$64,B59,$I$45:$I$64),0)),0) -> 0
G60: =IFERROR(($G$40*'Site Inputs'!$E$12/12*(E60*$D$8+F60*$D$9)+IFERROR(SUMIF($D$45:$D$64,B60,$I$45:$I$64),0)),0) -> 0 | H60: 0 | L60: 0 | N60: =IFERROR(VLOOKUP(M$43,'Lookup Tables'!$A$66:$B$73,2,FALSE),"") -> 0.3 | P60: 0 | R60: =IFERROR(VLOOKUP(Q$43,'Lookup Tables'!$A$66:$B$73,2,FALSE),"") -> 0.4 | T60: 0 | V60: =IFERROR(VLOOKUP(U$43,'Lookup Tables'!$A$66:$B$73,2,FALSE),"") -> 0.3 | X60: 0 | Z60: =IFERROR(VLOOKUP(Y$43,'Lookup Tables'!$A$66:$B$73,2,FALSE),"") -> 0.4 | AB60: 0 | AD60: =IFERROR(VLOOKUP(AC$43,'Lookup Tables'!$A$66:$B$73,2,FALSE),"") -> 0.3 | AF60: 0 | AJ60: 0 | AN60: 0 | AP60: 0 | AQ60: =IFERROR(VLOOKUP(C60,'Lookup Tables'!$A$25:$B$197,2,FALSE),"") ->  | AS60: =IFERROR(('Site Inputs'!$E$12/12*(E60*$D$8+F60*$D$9)+IFERROR(SUMIF($D$45:$D$64,B60,$I$45:$I$64),0)),0) -> 0
G61: =IFERROR(($G$40*'Site Inputs'!$E$12/12*(E61*$D$8+F61*$D$9)+IFERROR(SUMIF($D$45:$D$64,B61,$I$45:$I$64),0)),0) -> 0 | H61: 0 | L61: 0 | N61: =IFERROR(VLOOKUP(M$43,'Lookup Tables'!$A$66:$B$73,2,FALSE),"") -> 0.3 | P61: 0 | R61: =IFERROR(VLOOKUP(Q$43,'Lookup Tables'!$A$66:$B$73,2,FALSE),"") -> 0.4 | T61: 0 | V61: =IFERROR(VLOOKUP(U$43,'Lookup Tables'!$A$66:$B$73,2,FALSE),"") -> 0.3 | X61: 0 | Z61: =IFERROR(VLOOKUP(Y$43,'Lookup Tables'!$A$66:$B$73,2,FALSE),"") -> 0.4 | AB61: 0 | AD61: =IFERROR(VLOOKUP(AC$43,'Lookup Tables'!$A$66:$B$73,2,FALSE),"") -> 0.3 | AF61: 0 | AJ61: 0 | AN61: 0 | AP61: 0 | AQ61: =IFERROR(VLOOKUP(C61,'Lookup Tables'!$A$25:$B$197,2,FALSE),"") ->  | AS61: =IFERROR(('Site Inputs'!$E$12/12*(E61*$D$8+F61*$D$9)+IFERROR(SUMIF($D$45:$D$64,B61,$I$45:$I$64),0)),0) -> 0
G62: =IFERROR(($G$40*'Site Inputs'!$E$12/12*(E62*$D$8+F62*$D$9)+IFERROR(SUMIF($D$45:$D$64,B62,$I$45:$I$64),0)),0) -> 0 | H62: 0 | L62: 0 | N62: =IFERROR(VLOOKUP(M$43,'Lookup Tables'!$A$66:$B$73,2,FALSE),"") -> 0.3 | P62: 0 | R62: =IFERROR(VLOOKUP(Q$43,'Lookup Tables'!$A$66:$B$73,2,FALSE),"") -> 0.4 | T62: 0 | V62: =IFERROR(VLOOKUP(U$43,'Lookup Tables'!$A$66:$B$73,2,FALSE),"") -> 0.3 | X62: 0 | Z62: =IFERROR(VLOOKUP(Y$43,'Lookup Tables'!$A$66:$B$73,2,FALSE),"") -> 0.4 | AB62: 0 | AD62: =IFERROR(VLOOKUP(AC$43,'Lookup Tables'!$A$66:$B$73,2,FALSE),"") -> 0.3 | AF62: 0 | AJ62: 0 | AN62: 0 | AP62: 0 | AQ62: =IFERROR(VLOOKUP(C62,'Lookup Tables'!$A$25:$B$197,2,FALSE),"") ->  | AS62: =IFERROR(('Site Inputs'!$E$12/12*(E62*$D$8+F62*$D$9)+IFERROR(SUMIF($D$45:$D$64,B62,$I$45:$I$64),0)),0) -> 0
G63: =IFERROR(($G$40*'Site Inputs'!$E$12/12*(E63*$D$8+F63*$D$9)+IFERROR(SUMIF($D$45:$D$64,B63,$I$45:$I$64),0)),0) -> 0 | H63: 0 | L63: 0 | N63: =IFERROR(VLOOKUP(M$43,'Lookup Tables'!$A$66:$B$73,2,FALSE),"") -> 0.3 | P63: 0 | R63: =IFERROR(VLOOKUP(Q$43,'Lookup Tables'!$A$66:$B$73,2,FALSE),"") -> 0.4 | T63: 0 | V63: =IFERROR(VLOOKUP(U$43,'Lookup Tables'!$A$66:$B$73,2,FALSE),"") -> 0.3 | X63: 0 | Z63: =IFERROR(VLOOKUP(Y$43,'Lookup Tables'!$A$66:$B$73,2,FALSE),"") -> 0.4 | AB63: 0 | AD63: =IFERROR(VLOOKUP(AC$43,'Lookup Tables'!$A$66:$B$73,2,FALSE),"") -> 0.3 | AF63: 0 | AJ63: 0 | AN63: 0 | AP63: 0 | AQ63: =IFERROR(VLOOKUP(C63,'Lookup Tables'!$A$25:$B$197,2,FALSE),"") ->  | AS63: =IFERROR(('Site Inputs'!$E$12/12*(E63*$D$8+F63*$D$9)+IFERROR(SUMIF($D$45:$D$64,B63,$I$45:$I$64),0)),0) -> 0
G64: =IFERROR(($G$40*'Site Inputs'!$E$12/12*(E64*$D$8+F64*$D$9)+IFERROR(SUMIF($D$45:$D$64,B64,$I$45:$I$64),0)),0) -> 0 | H64: 0 | L64: 0 | N64: =IFERROR(VLOOKUP(M$43,'Lookup Tables'!$A$66:$B$73,2,FALSE),"") -> 0.3 | P64: 0 | R64: =IFERROR(VLOOKUP(Q$43,'Lookup Tables'!$A$66:$B$73,2,FALSE),"") -> 0.4 | T64: 0 | V64: =IFERROR(VLOOKUP(U$43,'Lookup Tables'!$A$66:$B$73,2,FALSE),"") -> 0.3 | X64: 0 | Z64: =IFERROR(VLOOKUP(Y$43,'Lookup Tables'!$A$66:$B$73,2,FALSE),"") -> 0.4 | AB64: 0 | AD64: =IFERROR(VLOOKUP(AC$43,'Lookup Tables'!$A$66:$B$73,2,FALSE),"") -> 0.3 | AF64: 0 | AJ64: 0 | AN64: 0 | AP64: 0 | AQ64: =IFERROR(VLOOKUP(C64,'Lookup Tables'!$A$25:$B$197,2,FALSE),"") ->  | AS64: =IFERROR(('Site Inputs'!$E$12/12*(E64*$D$8+F64*$D$9)+IFERROR(SUMIF($D$45:$D$64,B64,$I$45:$I$64),0)),0) -> 0
B67: =B7 -> RRV Prior to Reductions, (ft³) | D67: =D7 -> 0
B68: RRV After Reductions, RRVDA# (ft3) | D68: =D25 -> 0
B69: Total Retention Achieved, VR (ft3) | D69: =SUM(H45:H64) -> 0 | E69: =IF(D68=0,"",IF(D68>D69,"⮽ Need to capture an additional "&ROUND(D68-D69,0)&" cubic feet.","☑ You met the Required Retention Volume.")) -> 
B72: Detention Calculations
D74: 2-year storm | E74: 10-year storm | F74: 25-year storm | G74: 50-year storm | H74: 100-year storm
B75: Required Rainfall Event (in) - 6 hour Events | D75: 2.66 | E75: 4.04 | F75: 4.96 | G75: 5.7 | H75: 6.47
G77: Post-Project Conditions
G78: Weighted CN | H78: =$D$10 -> 0
G79: S | H79: =IFERROR(IF(H78>0,1000/H78-10,1000),"") -> 1000 | I79: Equation 5602-10
G80: Ia | H80: =IFERROR(H79*F101,"") -> 50
D83: =$D$74 -> 2-year storm | E83: =$E$74 -> 10-year storm | F83: =$F$74 -> 25-year storm | G83: =$G$74 -> 50-year storm | H83: =$H$74 -> 100-year storm
B84: Pre-Project Runoff Volume (in) | D84: =IFERROR(IF(D$75>$F$100*$AQ102,(D$75-$AQ$103)^2/(D$75-$AQ$103+$AQ$102),0),0) -> 0.1390295495 | E84: =IFERROR(IF(E$75>$F$100*$AQ102,(E$75-$AQ$103)^2/(E$75-$AQ$103+$AQ$102),0),0) -> 0.7468607017 | F84: =IFERROR(IF(F$75>$F$100*$AQ102,(F$75-$AQ$103)^2/(F$75-$AQ$103+$AQ$102),0),0) -> 1.306737429 | G84: =IFERROR(IF(G$75>$F$100*$AQ102,(G$75-$AQ$103)^2/(G$75-$AQ$103+$AQ$102),0),0) -> 1.8143459 | H84: =IFERROR(IF(H$75>$F$100*$AQ102,(H$75-$AQ$103)^2/(H$75-$AQ$103+$AQ$102),0),0) -> 2.382370665
B85: Post-Project Runoff Volume (in) with no Retention | D85: =IFERROR(IF(D$75>$F$101*$H79,(D$75-$H$80)^2/(D$75-$H$80+$H$79),0),0) -> 0 | E85: =IFERROR(IF(E$75>$F$101*$H79,(E$75-$H$80)^2/(E$75-$H$80+$H$79),0),0) -> 0 | F85: =IFERROR(IF(F$75>$F$101*$H79,(F$75-$H$80)^2/(F$75-$H$80+$H$79),0),0) -> 0 | G85: =IFERROR(IF(G$75>$F$101*$H79,(G$75-$H$80)^2/(G$75-$H$80+$H$79),0),0) -> 0 | H85: =IFERROR(IF(H$75>$F$101*$H79,(H$75-$H$80)^2/(H$75-$H$80+$H$79),0),0) -> 0 | I85: Equation 5602-11
B86: Post-Project Runoff Volume (in) with Retention | D86: =IFERROR(IF(D85>(SUM($AP$45:$AP$64))*12/($D$6),D85-(SUM($AP$45:$AP$64))*12/($D$6),0),0) -> 0 | E86: =IFERROR(IF(E85>(SUM($AP$45:$AP$64))*12/($D$6),E85-(SUM($AP$45:$AP$64))*12/($D$6),0),0) -> 0 | F86: =IFERROR(IF(F85>(SUM($AP$45:$AP$64))*12/($D$6),F85-(SUM($AP$45:$AP$64))*12/($D$6),0),0) -> 0 | G86: =IFERROR(IF(G85>(SUM($AP$45:$AP$64))*12/($D$6),G85-(SUM($AP$45:$AP$64))*12/($D$6),0),0) -> 0 | H86: =IFERROR(IF(H85>(SUM($AP$45:$AP$64))*12/($D$6),H85-(SUM($AP$45:$AP$64))*12/($D$6),0),0) -> 0 | I86: Equation 5602-13
B87: Retention Adjusted CN (CNR) | D87: =IF(D86>0,VLOOKUP((D86),B$104:$H$854,6),0) -> 0 | E87: =IF(E86>0,VLOOKUP((E86),C$104:$H$854,5),0) -> 0 | F87: =IF(F86>0,VLOOKUP((F86),D$104:$H$854,4),0) -> 0 | G87: =IF(G86>0,VLOOKUP((G86),E$104:$H$854,3),0) -> 0 | H87: =IF(H86>0,VLOOKUP((H86),F$104:$H$854,2),0) -> 0 | I87: Equation 5602-14
B88: Additional Detention Required? | D88: =IF(D87>AQ101,"Yes","No") -> No | E88: =IF(E87>AQ101,"Yes","No") -> No | F88: N/A | G88: N/A | H88: =IF(H87>AQ101,"Yes","No") -> No
F90: Overtopping Elevation | H90: =IF(G90=0,"",IF(G90>G94,"","Maximum ponding depth of design storm overtopping detention practice.")) -> 
B91: Design Storm | D91: Required Release Rate (cfs/acre) | E91: Allowable Site Release (cfs) | F91: Peak Outflow (cfs) | G91: Max Ponding Depth (ft) | H91: Achieved Release Rate (cfs/acre)
B92: 2-Year, NOAA Atlas14 Median, First Quartile | D92: 0.2 | E92: =D92*($D$6/43560) -> 0 | H92: =+IFERROR(F92/($D$6/43560),0) -> 0 | I92: =IF(H92=0,"",IF(H92>D92,"Re-size outlet control to meet required release rate.","Required release rate met.")) -> 
B93: 10-Year, NOAA Atlas14 Median, First Quartile | D93: 0.6 | E93: =D93*($D$6/43560) -> 0 | H93: =+IFERROR(F93/($D$6/43560),0) -> 0 | I93: =IF(H93=0,"",IF(H93>D93,"Re-size outlet control to meet required release rate.","Required release rate met.")) -> 
B94: 100-Year, NOAA Atlas14 Median, First Quartile | D94: 3 | E94: =D94*($D$6/43560) -> 0 | H94: =+IFERROR(F94/($D$6/43560),0) -> 0 | I94: =IF(H94=0,"",IF(H94>D94,"Re-size outlet control to meet required release rate.","Required release rate met.")) -> 
D100: Predevelopment | F100: 0.4 | G100: X | AP100: Pre-Development Conditions
D101: Post-Development | F101: 0.05 | G101: X | AP101: Weighted CN | AQ101: 69
B102: LOCK/HIDE THESE CALC CELLS | AP102: S | AQ102: =IFERROR(IF(AQ101>0,1000/AQ101-10,1000),"") -> 4.492753623
B103: v (in) | C103: v (in) | D103: v (in) | E103: v (in) | F103: v (in) | G103: CN | H103: S | AP103: Ia | AQ103: =IFERROR(AQ102*F100,"") -> 1.797101449
B104: =IF(D$75>0.2*($H104),(D$75-0.2*($H104))^2/(D$75+0.8*($H104)),0) -> 0 | C104: =IF(E$75>0.2*($H104),(E$75-0.2*($H104))^2/(E$75+0.8*($H104)),0) -> 0 | D104: =IF(F$75>0.2*($H104),(F$75-0.2*($H104))^2/(F$75+0.8*($H104)),0) -> 0 | E104: =IF(G$75>0.2*($H104),(G$75-0.2*($H104))^2/(G$75+0.8*($H104)),0) -> 0 | F104: =IF(H$75>0.2*($H104),(H$75-0.2*($H104))^2/(H$75+0.8*($H104)),0) -> 0.007249753856 | G104: 25 | H104: =IF(G104>0,1000/G104-10,1000) -> 30
B105: 0 | C105: 0 | D105: 0 | E105: 0 | F105: 0.008301093633 | G105: =G104+0.1 -> 25.1 | H105: 29.84063745
B106: 0 | C106: 0 | D106: 0 | E106: 0 | F106: 0.009419297153 | G106: =G105+0.1 -> 25.2 | H106: 29.68253968
B107: 0 | C107: 0 | D107: 0 | E107: 0 | F107: 0.01060361673 | G107: 25.3 | H107: 29.5256917
B108: 0 | C108: 0 | D108: 0 | E108: 0 | F108: 0.01185331649 | G108: 25.4 | H108: 29.37007874
B109: 0 | C109: 0 | D109: 0 | E109: 0 | F109: 0.01316767214 | G109: 25.5 | H109: 29.21568627
B110: 0 | C110: 0 | D110: 0 | E110: 0 | F110: 0.01454597073 | G110: 25.6 | H110: 29.0625
B111: 0 | C111: 0 | D111: 0 | E111: 0 | F111: 0.01598751045 | G111: 25.7 | H111: 28.91050584
B112: 0 | C112: 0 | D112: 0 | E112: 0 | F112: 0.01749160042 | G112: 25.8 | H112: 28.75968992
B113: 0 | C113: 0 | D113: 0 | E113: 0 | F113: 0.01905756044 | G113: 25.9 | H113: 28.61003861
B114: 0 | C114: 0 | D114: 0 | E114: 2.078440338e-06 | F114: 0.02068472082 | G114: 26 | H114: 28.46153846
B115: 0 | C115: 0 | D115: 0 | E115: 4.871793239e-05 | F115: 0.02237242218 | G115: 26.1 | H115: 28.31417625
B116: 0 | C116: 0 | D116: 0 | E116: 0.0001562133343 | F116: 0.02412001523 | G116: 26.2 | H116: 28.16793893
B117: 0 | C117: 0 | D117: 0 | E117: 0.0003239273688 | F117: 0.02592686059 | G117: 26.3 | H117: 28.02281369
B118: 0 | C118: 0 | D118: 0 | E118: 0.000551232485 | F118: 0.02779232861 | G118: =G117+0.1 -> 26.4 | H118: 27.87878788
B119: 0 | C119: 0 | D119: 0 | E119: 0.0008375106747 | F119: 0.02971579918 | G119: =G118+0.1 -> 26.5 | H119: 27.73584906
B120: 0 | C120: 0 | D120: 0 | E120: 0.001182153293 | F120: 0.03169666153 | G120: =G119+0.1 -> 26.6 | H120: 27.59398496
B121: 0 | C121: 0 | D121: 0 | E121: 0.001584560885 | F121: 0.03373431411 | G121: =G120+0.1 -> 26.7 | H121: 27.45318352
B122: 0 | C122: 0 | D122: 0 | E122: 0.00204414301 | F122: 0.03582816436 | G122: =G121+0.1 -> 26.8 | H122: 27.31343284
B123: 0 | C123: 0 | D123: 0 | E123: 0.002560318079 | F123: 0.03797762855 | G123: 26.9 | H123: 27.17472119
B124: 0 | C124: 0 | D124: 0 | E124: 0.003132513188 | F124: 0.04018213168 | G124: 27 | H124: 27.03703704
B125: 0 | C125: 0 | D125: 0 | E125: 0.003760163959 | F125: 0.04244110722 | G125: 27.1 | H125: 26.900369
B126: 0 | C126: 0 | D126: 0 | E126: 0.004442714382 | F126: 0.04475399704 | G126: 27.2 | H126: 26.76470588
B127: 0 | C127: 0 | D127: 0 | E127: 0.005179616665 | F127: 0.04712025122 | G127: 27.3 | H127: 26.63003663
B128: 0 | C128: 0 | D128: 0 | E128: 0.005970331079 | F128: 0.04953932788 | G128: 27.4 | H128: 26.49635036
B129: 0 | C129: 0 | D129: 0 | E129: 0.006814325817 | F129: 0.05201069307 | G129: 27.5 | H129: 26.36363636
B130: 0 | C130: 0 | D130: 0 | E130: 0.007711076846 | F130: 0.05453382062 | G130: 27.6 | H130: 26.23188406
B131: 0 | C131: 0 | D131: 0 | E131: 0.008660067772 | F131: 0.05710819198 | G131: 27.7 | H131: 26.10108303
B132: 0 | C132: 0 | D132: 0 | E132: 0.009660789696 | F132: 0.0597332961 | G132: 27.8 | H132: 25.97122302
B133: 0 | C133: 0 | D133: 0 | E133: 0.01071274108 | F133: 0.06240862929 | G133: 27.9 | H133: 25.84229391
B134: 0 | C134: 0 | D134: 0 | E134: 0.01181542764 | F134: 0.06513369509 | G134: 28 | H134: 25.71428571
B135: 0 | C135: 0 | D135: 0 | E135: 0.01296836216 | F135: 0.06790800413 | G135: 28.1 | H135: 25.58718861
B136: 0 | C136: 0 | D136: 0 | E136: 0.01417106444 | F136: 0.07073107404 | G136: 28.2 | H136: 25.46099291
B137: 0 | C137: 0 | D137: 0 | E137: 0.01542306111 | F137: 0.07360242928 | G137: 28.3 | H137: 25.33568905
B138: 0 | C138: 0 | D138: 0 | E138: 0.01672388554 | F138: 0.07652160104 | G138: 28.4 | H138: 25.21126761
B139: 0 | C139: 0 | D139: 0 | E139: 0.01807307772 | F139: 0.07948812714 | G139: 28.5 | H139: 25.0877193
B140: 0 | C140: 0 | D140: 0 | E140: 0.01947018414 | F140: 0.08250155189 | G140: 28.6 | H140: 24.96503497
B141: 0 | C141: 0 | D141: 0 | E141: 0.02091475769 | F141: 0.08556142597 | G141: 28.7 | H141: 24.84320557
B142: 0 | C142: 0 | D142: 9.781610572e-06 | E142: 0.02240635751 | F142: 0.08866730634 | G142: 28.8 | H142: 24.72222222
B143: 0 | C143: 0 | D143: 6.358964296e-05 | E143: 0.02394454894 | F143: 0.09181875615 | G143: 28.9 | H143: 24.60207612
B144: 0 | C144: 0 | D144: 0.0001640043094 | E144: 0.02552890335 | F144: 0.09501534458 | G144: 29 | H144: 24.48275862
B145: 0 | C145: 0 | D145: 0.0003106051351 | E145: 0.0271589981 | F145: 0.09825664677 | G145: 29.1 | H145: 24.36426117
B146: 0 | C146: 0 | D146: 0.0005029775075 | E146: 0.02883441638 | F146: 0.1015422437 | G146: 29.2 | H146: 24.24657534
B147: 0 | C147: 0 | D147: 0.0007407125765 | E147: 0.03055474715 | F147: 0.1048717222 | G147: 29.3 | H147: 24.12969283
B148: 0 | C148: 0 | D148: 0.001023407156 | E148: 0.03231958503 | F148: 0.1082446745 | G148: 29.4 | H148: 24.01360544
B149: 0 | C149: 0 | D149: 0.00135066363 | E149: 0.03412853021 | F149: 0.1116606988 | G149: 29.5 | H149: 23.89830508
B150: 0 | C150: 0 | D150: 0.001722089856 | E150: 0.03598118831 | F150: 0.1151193983 | G150: 29.6 | H150: 23.78378378
B151: 0 | C151: 0 | D151: 0.002137299075 | E151: 0.03787717039 | F151: 0.118620382 | G151: 29.7 | H151: 23.67003367
B152: 0 | C152: 0 | D152: 0.002595909821 | E152: 0.03981609274 | F152: 0.1221632638 | G152: 29.8 | H152: 23.55704698
B153: 0 | C153: 0 | D153: 0.003097545833 | E153: 0.04179757688 | F153: 0.1257476631 | G153: 29.9 | H153: 23.44481605
B154: 0 | C154: 0 | D154: 0.003641835967 | E154: 0.04382124943 | F154: 0.1293732043 | G154: 30 | H154: 23.33333333
B155: 0 | C155: 0 | D155: 0.004228414113 | E155: 0.04588674205 | F155: 0.1330395167 | G155: 30.1 | H155: 23.22259136
B156: 0 | C156: 0 | D156: 0.00485691911 | E156: 0.04799369132 | F156: 0.1367462347 | G156: 30.2 | H156: 23.11258278
B157: 0 | C157: 0 | D157: 0.005526994668 | E157: 0.05014173872 | F157: 0.1404929976 | G157: 30.3 | H157: 23.00330033
B158: 0 | C158: 0 | D158: 0.006238289283 | E158: 0.05233053047 | F158: 0.1442794493 | G158: 30.4 | H158: 22.89473684
B159: 0 | C159: 0 | D159: 0.006990456165 | E159: 0.05455971753 | F159: 0.1481052385 | G159: 30.5 | H159: 22.78688525
B160: 0 | C160: 0 | D160: 0.007783153153 | E160: 0.05682895546 | F160: 0.1519700185 | G160: 30.6 | H160: 22.67973856
B161: 0 | C161: 0 | D161: 0.008616042649 | E161: 0.0591379044 | F161: 0.1558734472 | G161: 30.7 | H161: 22.5732899
B162: 0 | C162: 0 | D162: 0.009488791538 | E162: 0.06148622895 | F162: 0.159815187 | G162: 30.8 | H162: 22.46753247
B163: 0 | C163: 0 | D163: 0.01040107112 | E163: 0.06387359812 | F163: 0.1637949045 | G163: 30.9 | H163: 22.36245955
B164: 0 | C164: 0 | D164: 0.01135255702 | E164: 0.06629968525 | F164: 0.1678122708 | G164: 31 | H164: 22.25806452
B165: 0 | C165: 0 | D165: 0.01234292917 | E165: 0.06876416797 | F165: 0.1718669613 | G165: 31.1 | H165: 22.15434084
B166: 0 | C166: 0 | D166: 0.01337187167 | E166: 0.07126672807 | F166: 0.1759586555 | G166: 31.2 | H166: 22.05128205
B167: 0 | C167: 0 | D167: 0.01443907277 | E167: 0.0738070515 | F167: 0.1800870371 | G167: 31.3 | H167: 21.94888179
B168: =IF(D$75>0.2*($H168),(D$75-0.2*($H168))^2/(D$75+0.8*($H168)),0) -> 0 | C168: =IF(E$75>0.2*($H168),(E$75-0.2*($H168))^2/(E$75+0.8*($H168)),0) -> 0 | D168: =IF(F$75>0.2*($H168),(F$75-0.2*($H168))^2/(F$75+0.8*($H168)),0) -> 0.0155442248 | E168: =IF(G$75>0.2*($H168),(G$75-0.2*($H168))^2/(G$75+0.8*($H168)),0) -> 0.07638482827 | F168: =IF(H$75>0.2*($H168),(H$75-0.2*($H168))^2/(H$75+0.8*($H168)),0) -> 0.1842517937 | G168: 31.4 | H168: =IF(G168>0,1000/G168-10,1000) -> 21.84713376
B169: 0 | C169: 0 | D169: 0.01668702408 | E169: 0.07899975238 | F169: 0.1884526172 | G169: 31.5 | H169: 21.74603175
B170: 0 | C170: 0 | D170: 0.01786717089 | E170: 0.08165152177 | F170: 0.192689203 | G170: =G169+0.1 -> 31.6 | H170: 21.64556962
B171: 0 | C171: 0 | D171: 0.01908436938 | E171: 0.08433983826 | F171: 0.1969612508 | G171: 31.7 | H171: 21.54574132
B172: 0 | C172: 0 | D172: 0.02033832752 | E172: 0.08706440748 | F172: 0.2012684638 | G172: 31.8 | H172: 21.44654088
B173: 0 | C173: 0 | D173: 0.02162875705 | E173: 0.08982493882 | F173: 0.2056105492 | G173: 31.9 | H173: 21.34796238
B174: 0 | C174: 0 | D174: 0.02295537341 | E174: 0.09262114537 | F174: 0.2099872177 | G174: 32 | H174: 21.25
B175: 0 | C175: 0 | D175: 0.02431789567 | E175: 0.09545274385 | F175: 0.2143981838 | G175: 32.1 | H175: 21.15264798
B176: 0 | C176: 0 | D176: 0.02571604651 | E176: 0.09831945456 | F176: 0.2188431653 | G176: 32.2 | H176: 21.05590062
B177: 0 | C177: 0 | D177: 0.02714955213 | E177: 0.1012210013 | F177: 0.2233218838 | G177: 32.3 | H177: 20.95975232
B178: 0 | C178: 0 | D178: 0.02861814221 | E178: 0.1041571115 | F178: 0.2278340643 | G178: 32.4 | H178: 20.86419753
B179: 0 | C179: 0 | D179: 0.03012154987 | E179: 0.1071275157 | F179: 0.2323794352 | G179: 32.5 | H179: 20.76923077
B180: 0 | C180: 0 | D180: 0.03165951158 | E180: 0.1101319481 | F180: 0.2369577283 | G180: 32.6 | H180: 20.67484663
B181: 0 | C181: 0 | D181: 0.03323176715 | E181: 0.1131701461 | F181: 0.2415686785 | G181: 32.7 | H181: 20.58103976
B182: 0 | C182: 0 | D182: 0.03483805966 | E182: 0.1162418504 | F182: 0.2462120242 | G182: 32.8 | H182: 20.48780488
B183: 0 | C183: 0 | D183: 0.03647813539 | E183: 0.1193468048 | F183: 0.250887507 | G183: 32.9 | H183: 20.39513678
B184: 0 | C184: 0 | D184: 0.03815174383 | E184: 0.1224847564 | F184: 0.2555948715 | G184: 33 | H184: 20.3030303
B185: 0 | C185: 0 | D185: 0.03985863756 | E185: 0.1256554554 | F185: 0.2603338656 | G185: 33.1 | H185: 20.21148036
B186: 0 | C186: 1.256059347e-05 | D186: 0.04159857226 | E186: 0.128858655 | F186: 0.2651042401 | G186: 33.2 | H186: 20.12048193
B187: 0 | C187: 5.759520754e-05 | D187: 0.04337130664 | E187: 0.1320941115 | F187: 0.269905749 | G187: 33.3 | H187: 20.03003003
B188: 0 | C188: 0.000135128882 | D188: 0.0451766024 | E188: 0.1353615841 | F188: 0.2747381491 | G188: 33.4 | H188: 19.94011976
B189: 0 | C189: 0.0002449287414 | D189: 0.04701422417 | E189: 0.1386608351 | F189: 0.2796012003 | G189: 33.5 | H189: 19.85074627
B190: 0 | C190: 0.0003867648201 | D190: 0.04888393949 | E190: 0.1419916295 | F190: 0.2844946653 | G190: 33.6 | H190: 19.76190476
B191: 0 | C191: 0.00056041002 | D191: 0.05078551875 | E191: 0.1453537352 | F191: 0.2894183095 | G191: 33.7 | H191: 19.6735905
B192: 0 | C192: 0.0007656400682 | D192: 0.05271873517 | E192: 0.1487469231 | F192: 0.2943719015 | G192: 33.8 | H192: 19.58579882
B193: 0 | C193: 0.001002233476 | D193: 0.05468336473 | E193: 0.1521709665 | F193: 0.2993552122 | G193: 33.9 | H193: 19.49852507
B194: 0 | C194: 0.001269971497 | D194: 0.05667918614 | E194: 0.1556256418 | F194: 0.3043680155 | G194: 34 | H194: 19.41176471
B195: 0 | C195: 0.001568638091 | D195: 0.05870598082 | E195: 0.1591107278 | F195: 0.309410088 | G195: 34.1 | H195: 19.3255132
B196: 0 | C196: 0.001898019879 | D196: 0.06076353282 | E196: 0.1626260061 | F196: 0.3144812088 | G196: 34.2 | H196: 19.23976608
B197: 0 | C197: 0.002257906111 | D197: 0.06285162882 | E197: 0.166171261 | F197: 0.3195811596 | G197: 34.3 | H197: 19.15451895
B198: 0 | C198: 0.002648088624 | D198: 0.06497005809 | E198: 0.1697462791 | F198: 0.3247097249 | G198: 34.4 | H198: 19.06976744
B199: 0 | C199: 0.003068361806 | D199: 0.06711861241 | E199: 0.1733508497 | F199: 0.3298666915 | G199: 34.5 | H199: 18.98550725
B200: 0 | C200: 0.003518522561 | D200: 0.06929708608 | E200: 0.1769847647 | F200: 0.3350518487 | G200: 34.6 | H200: 18.9017341
B201: 0 | C201: 0.003998370271 | D201: 0.07150527588 | E201: 0.1806478182 | F201: 0.3402649883 | G201: 34.7 | H201: 18.8184438
B202: 0 | C202: 0.004507706762 | D202: 0.073742981 | E202: 0.1843398069 | F202: 0.3455059047 | G202: 34.8 | H202: 18.73563218
B203: 0 | C203: 0.005046336269 | D203: 0.07601000305 | E203: 0.1880605299 | F203: 0.3507743944 | G203: 34.9 | H203: 18.65329513
B204: 0 | C204: 0.005614065402 | D204: 0.07830614599 | E204: 0.1918097885 | F204: 0.3560702564 | G204: 35 | H204: 18.57142857
B205: 0 | C205: 0.006210703114 | D205: 0.08063121611 | E205: 0.1955873867 | F205: 0.3613932919 | G205: 35.1 | H205: 18.49002849
B206: 0 | C206: 0.006836060665 | D206: 0.082985022 | E206: 0.1993931302 | F206: 0.3667433047 | G206: 35.2 | H206: 18.40909091
B207: 0 | C207: 0.007489951592 | D207: 0.08536737452 | E207: 0.2032268276 | F207: 0.3721201005 | G207: 35.3 | H207: 18.3286119
B208: 0 | C208: 0.008172191679 | D208: 0.08777808676 | E208: 0.2070882892 | F208: 0.3775234874 | G208: 35.4 | H208: 18.24858757
B209: 0 | C209: 0.008882598921 | D209: 0.09021697402 | E209: 0.2109773277 | F209: 0.3829532757 | G209: 35.5 | H209: 18.16901408
B210: 0 | C210: 0.009620993496 | D210: 0.09268385376 | E210: 0.2148937582 | F210: 0.3884092777 | G210: 35.6 | H210: 18.08988764
B211: 0 | C211: 0.01038719774 | D211: 0.09517854558 | E211: 0.2188373975 | F211: 0.393891308 | G211: 35.7 | H211: 18.01120448
B212: 0 | C212: 0.0111810361 | D212: 0.09770087121 | E212: 0.2228080648 | F212: 0.3993991833 | G212: 35.8 | H212: 17.93296089
B213: 0 | C213: 0.01200233513 | D213: 0.1002506544 | E213: 0.2268055812 | F213: 0.4049327222 | G213: 35.9 | H213: 17.8551532
B214: 0 | C214: 0.01285092345 | D214: 0.1028277211 | E214: 0.2308297701 | F214: 0.4104917456 | G214: 36 | H214: 17.77777778
B215: 0 | C215: 0.0137266317 | D215: 0.1054318992 | E215: 0.2348804566 | F215: 0.4160760761 | G215: 36.1 | H215: 17.70083102
B216: 0 | C216: 0.01462929254 | D216: 0.1080630184 | E216: 0.2389574681 | F216: 0.4216855387 | G216: 36.2 | H216: 17.62430939
B217: 0 | C217: 0.01555874063 | D217: 0.1107209107 | E217: 0.2430606337 | F217: 0.4273199599 | G217: 36.3 | H217: 17.54820937
B218: 0 | C218: 0.01651481255 | D218: 0.1134054099 | E218: 0.2471897846 | F218: 0.4329791684 | G218: 36.4 | H218: 17.47252747
B219: 0 | C219: 0.01749734684 | D219: 0.1161163517 | E219: 0.2513447538 | F219: 0.4386629949 | G219: 36.5 | H219: 17.39726027
B220: 0 | C220: 0.01850618392 | D220: 0.1188535736 | E220: 0.2555253763 | F220: 0.4443712717 | G220: 36.6 | H220: 17.32240437
B221: 0 | C221: 0.0195411661 | D221: 0.1216169152 | E221: 0.2597314889 | F221: 0.4501038331 | G221: 36.7 | H221: 17.2479564
B222: 0 | C222: 0.02060213755 | D222: 0.1244062177 | E222: 0.2639629302 | F222: 0.4558605152 | G222: 36.8 | H222: 17.17391304
B223: 0 | C223: 0.02168894425 | D223: 0.1272213242 | E223: 0.2682195407 | F223: 0.4616411561 | G223: 36.9 | H223: 17.100271
B224: 0 | C224: 0.02280143399 | D224: 0.1300620798 | E224: 0.2725011625 | F224: 0.4674455953 | G224: 37 | H224: 17.02702703
B225: 0 | C225: 0.02393945634 | D225: 0.132928331 | E225: 0.2768076398 | F225: 0.4732736744 | G225: 37.1 | H225: 16.9541779
... 629 more rows

Sheet Design Summary
B2: Design Summary Worksheet
B4: Total Site Summary | C4: Total Disturbed Area (ft2): | D4: ='Site Inputs'!$D$9 -> 0 | E4: =IF($D$4=0,"",(IF($D$4-SUM(Drainage_Area_IDs[Disturbed Drainage Area (ft2)])<>0,"⮽ Subdivided disturbed drainage areas from the Drainage Area Summary Table in the Site Input tab does not match the input total disturbed area.",""))) -> 
C5: Total Site Rv: | D5: =IFERROR(('Site Inputs'!M66*'Site Inputs'!O66)/'Site Inputs'!$D$9, 0) -> 0
C6: Total RRV Prior to Reductions (ft3) | D6: =0 -> 0
C7: Total RRV Reductions (ft3) | D7: =0 -> 0
C8: Total RRV After Reductions (ft3) | D8: =0 -> 0
C9: Total Retention Volume Achieved (ft3) | D9: =0 -> 0 | E9: =IF(D8=0,"",IF(ROUND(D9,0)>=ROUND(D8,0),"☑ Total Required Retention Volume achieved!","⮽ Additional retention required.")) -> 
C10: Percent WQv Control Achieved | D10: =IF(D9=0,0,((D9+D7)*12)/('Site Inputs'!$E$12*(D4*D5))) -> 0 | E10: =IF(D10>='Site Inputs'!$E$13,"☑ Required percent site control achieved!","⮽ Additional site control required.") -> ☑ Required percent site control achieved!
